Workbook

Sheet 企业公示
A1: 2024年封丘县土地流转奖补项目公告公示明细表（2）
A2: 日期： | B2: 2024年6月18日-28日
A3: 序号 | B3: 项目 名称 | C3: 建设内容 | D3: 实施地点 | E3: 经营主体 | F3: 流转土地面积（亩） | G3: 补助标准 | H3: 补助金额 | I3: 资金来源 | J3: 建设期限 | K3: 绩效目标 | L3: 利益联结机制 | M3: 备注
A5: 1 | B5: 封丘县王村乡（携缘合种植专业合作社）土地流转奖补项目 | C5: 对经营主体和11户流出土地的贫困户进行奖补，流转土地47.6亩。 | D5: 王村乡北孟庄村 | E5: 封丘县携缘合种植专业合作社 | F5: 47.6 | G5: 经营主体每亩补助300元 | H5: 14280 | I5: 衔接资金 | J5: 2024年1月-12月 | K5: 通过土地流转使享受政策的建档立卡户每亩增收200元，经营主体每亩补助300元。 | L5: 项目实施将带动低收入人口增加收入，增加务工就业机会，群众满意。
A6: 2 | B6: 封丘县王村乡（喜相逢种植专业合作社）土地流转奖补项目 | C6: 对经营主体和2户流出土地的贫困户进行奖补，流转土地7.8亩。 | D6: 王村乡尚庄村 | E6: 封丘县喜相逢种植专业合作社 | F6: 7.8 | G6: 经营主体每亩补助300元 | H6: 2340 | I6: 衔接资金 | J6: 2024年1月-12月 | K6: 通过土地流转使享受政策的建档立卡户每亩增收200元，经营主体每亩补助300元。 | L6: 项目实施将带动低收入人口增加收入，增加务工就业机会，群众满意。
A7: 3 | B7: 封丘县黄陵镇（建伟农业家庭农场）土地流转奖补项目 | C7: 对经营主体和3户流出土地的贫困户进行奖补，流转土地17.53亩。 | D7: 黄陵镇陈寨村 | E7: 封丘县建伟农业家庭农场 | F7: 17.53 | G7: 经营主体每亩补助300元 | H7: 5259 | I7: 衔接资金 | J7: 2024年1月-12月 | K7: 通过土地流转使享受政策的建档立卡户每亩增收200元，经营主体每亩补助300元。 | L7: 项目实施将带动低收入人口增加收入，增加务工就业机会，群众满意。
A8: 4 | B8: 封丘县黄陵镇（献振种植专业合作社）土地流转奖补项目 | C8: 对经营主体和10户流出土地的贫困户进行奖补，流转土地28.98亩。 | D8: 黄陵镇高村 | E8: 封丘县献振种植专业合作社 | F8: 28.98 | G8: 经营主体每亩补助300元 | H8: 8694 | I8: 衔接资金 | J8: 2024年1月-12月 | K8: 通过土地流转使享受政策的建档立卡户每亩增收200元，经营主体每亩补助300元。 | L8: 项目实施将带动低收入人口增加收入，增加务工就业机会，群众满意。
A9: 5 | B9: 封丘县黄陵镇（胜源种植场）土地流转奖补项目 | C9: 对经营主体和13户流出土地的贫困户进行奖补，流转土地67.77亩。 | D9: 黄陵镇平街村 | E9: 封丘县黄陵镇胜源种植场 | F9: 67.77 | G9: 经营主体每亩补助300元 | H9: 20331 | I9: 衔接资金 | J9: 2024年1月-12月 | K9: 通过土地流转使享受政策的建档立卡户每亩增收200元，经营主体每亩补助300元。 | L9: 项目实施将带动低收入人口增加收入，增加务工就业机会，群众满意。
A10: 6 | B10: 封丘县鲁岗镇（中俊种植农场）土地流转奖补项目 | C10: 对经营主体和4户流出土地的贫困户进行奖补，流转土地20.64亩。 | D10: 鲁岗镇和寨村 | E10: 封丘县中俊种植农场 | F10: 20.64 | G10: 经营主体每亩补助300元 | H10: 6192 | I10: 衔接资金 | J10: 2024年1月-15月 | K10: 通过土地流转使享受政策的建档立卡户每亩增收200元，经营主体每亩补助300元。 | L10: 项目实施将带动低收入人口增加收入，增加务工就业机会，群众满意。
A11: 7 | B11: 封丘县鲁岗镇（广记种植场）土地流转奖补项目 | C11: 对经营主体和1户流出土地的贫困户进行奖补，流转土地5亩。 | D11: 鲁岗镇东马庄村 | E11: 封丘县广记种植场 | F11: 5 | G11: 经营主体每亩补助300元 | H11: 1500 | I11: 衔接资金 | J11: 2024年1月-14月 | K11: 通过土地流转使享受政策的建档立卡户每亩增收200元，经营主体每亩补助300元。 | L11: 项目实施将带动低收入人口增加收入，增加务工就业机会，群众满意。
A12: 8 | B12: 封丘县鲁岗镇（梓钰种植专业合作社）土地流转奖补项目 | C12: 对经营主体和13户流出土地的贫困户进行奖补，流转土地15.78亩。 | D12: 鲁岗镇白店村 | E12: 封丘县梓钰种植专业合作社 | F12: 15.78 | G12: 经营主体每亩补助300元 | H12: 4734 | I12: 衔接资金 | J12: 2024年1月-12月 | K12: 通过土地流转使享受政策的建档立卡户每亩增收200元，经营主体每亩补助300元。 | L12: 项目实施将带动低收入人口增加收入，增加务工就业机会，群众满意。
A13: 9 | B13: 封丘县鲁岗镇（客之家家庭农场）土地流转奖补项目 | C13: 对经营主体和1户流出土地的贫困户进行奖补，流转土地3.29亩。 | D13: 鲁岗镇鲁岗村 | E13: 封丘县客之家家庭农场 | F13: 3.29 | G13: 经营主体每亩补助300元 | H13: 987 | I13: 衔接资金 | J13: 2024年1月-13月 | K13: 通过土地流转使享受政策的建档立卡户每亩增收200元，经营主体每亩补助300元。 | L13: 项目实施将带动低收入人口增加收入，增加务工就业机会，群众满意。
A14: 10 | B14: 封丘县居厢镇（庆富金银花种植专业合作社）土地流转奖补项目 | C14: 对经营主体和9户流出土地的贫困户进行奖补，流转土地89.92亩。 | D14: 居厢镇纪店村 | E14: 封丘县庆富金银花种植专业合作社 | F14: 89.92 | G14: 经营主体每亩补助300元 | H14: 26976 | I14: 衔接资金 | J14: 2024年1月-12月 | K14: 通过土地流转使享受政策的建档立卡户每亩增收200元，经营主体每亩补助300元。 | L14: 项目实施将带动低收入人口增加收入，增加务工就业机会，群众满意。
A15: 11 | B15: 封丘县居厢镇（济钦种植家庭农场）土地流转奖补项目 | C15: 对经营主体和1户流出土地的贫困户进行奖补，流转土地8.36亩。 | D15: 居厢镇河东村 | E15: 封丘县济钦种植家庭农场 | F15: 8.36 | G15: 经营主体每亩补助300元 | H15: 2508 | I15: 衔接资金 | J15: 2024年1月-12月 | K15: 通过土地流转使享受政策的建档立卡户每亩增收200元，经营主体每亩补助300元。 | L15: 项目实施将带动低收入人口增加收入，增加务工就业机会，群众满意。
A16: 12 | B16: 封丘县黄德镇(鑫豫种植专业合作社)土地流转奖补项目 | C16: 对经营主体和 6户流出土地的贫困户进行奖补，流转土地48.2亩。 | D16: 黄德镇黄德村、文岩村 | E16: 封丘县鑫豫种植专业合作社 | F16: 48.2 | G16: 经营主体每亩补助300元 | H16: 14460 | I16: 衔接资金 | J16: 2024年1月-12月 | K16: 通过土地流转使享受政策的建档立卡户每亩增收200元，经营主体每亩补助300元。 | L16: 项目实施将带动低收入人口增加收入，增加务工就业机会，群众满意。
A17: 13 | B17: 封丘县黄德镇(黄河古道生态农业发展有限公司）土地流转奖补项目 | C17: 对经营主体和 7户流出土地的贫困户进行奖补，流转土地48.02亩。 | D17: 黄德镇蒋西村 | E17: 封丘县黄河古道生态农业发展有限公司 | F17: 48.02 | G17: 经营主体每亩补助300元 | H17: 14406 | I17: 衔接资金 | J17: 2024年1月-12月 | K17: 通过土地流转使享受政策的建档立卡户每亩增收200元，经营主体每亩补助300元。 | L17: 项目实施将带动低收入人口增加收入，增加务工就业机会，群众满意。
A18: 14 | B18: 封丘县荆隆宫乡(宏晟家庭农场)土地流转奖补项目 | C18: 对经营主体和3户流出土地的贫困户进行奖补，流转土地22.49亩。 | D18: 荆隆宫乡水驿村 | E18: 封丘县宏晟家庭农场 | F18: 22.49 | G18: 经营主体每亩补助300元 | H18: 6747 | I18: 衔接资金 | J18: 2024年1月-12月 | K18: 通过土地流转使享受政策的建档立卡户每亩增收200元，经营主体每亩补助300元。 | L18: 项目实施将带动低收入人口增加收入，增加务工就业机会，群众满意。
A19: 15 | B19: 封丘县荆隆宫乡(沁雅桃园家庭农场)土地流转奖补项目 | C19: 对经营主体和1户流出土地的贫困户进行奖补，流转土地6.5亩。 | D19: 荆隆宫乡小齐寨村 | E19: 封丘县沁雅桃园家庭农场 | F19: 6.5 | G19: 经营主体每亩补助300元 | H19: 1950 | I19: 衔接资金 | J19: 2024年1月-12月 | K19: 通过土地流转使享受政策的建档立卡户每亩增收200元，经营主体每亩补助300元。 | L19: 项目实施将带动低收入人口增加收入，增加务工就业机会，群众满意。
A20: 16 | B20: 封丘县荆隆宫乡(携缘合种植专业合作社)土地流转奖补项目 | C20: 对经营主体和4户流出土地的贫困户进行奖补，流转土地30.65亩。 | D20: 荆隆宫乡丁庄村 | E20: 封丘县携缘合种植专业合作社 | F20: 30.65 | G20: 经营主体每亩补助300元 | H20: 9195 | I20: 衔接资金 | J20: 2024年1月-12月 | K20: 通过土地流转使享受政策的建档立卡户每亩增收200元，经营主体每亩补助300元。 | L20: 项目实施将带动低收入人口增加收入，增加务工就业机会，群众满意。
A21: 17 | B21: 封丘县荆隆宫乡(永顺种植专业合作社)土地流转奖补项目 | C21: 对经营主体和8户流出土地的贫困户进行奖补，流转土地76.3亩。 | D21: 荆隆宫乡西辛庄村 | E21: 封丘县永顺种植专业合作社 | F21: 76.3 | G21: 经营主体每亩补助300元 | H21: 22890 | I21: 衔接资金 | J21: 2024年1月-12月 | K21: 通过土地流转使享受政策的建档立卡户每亩增收200元，经营主体每亩补助300元。 | L21: 项目实施将带动低收入人口增加收入，增加务工就业机会，群众满意。
A22: 18 | B22: 封丘县荆隆宫乡(乃海种植专业合作社)土地流转奖补项目 | C22: 对经营主体和8户流出土地的贫困户进行奖补，流转土地63.1亩。 | D22: 荆隆宫乡大王庄村 | E22: 封丘县乃海种植专业合作社 | F22: 63.1 | G22: 经营主体每亩补助300元 | H22: 18930 | I22: 衔接资金 | J22: 2024年1月-12月 | K22: 通过土地流转使享受政策的建档立卡户每亩增收200元，经营主体每亩补助300元。 | L22: 项目实施将带动低收入人口增加收入，增加务工就业机会，群众满意。
A23: 19 | B23: 河南荆隆宫乡(黄池农业发展有限公司)土地流转奖补项目 | C23: 对经营主体和10户流出土地的贫困户进行奖补，流转土地58.1亩。 | D23: 荆隆宫乡后桑园村 | E23: 河南黄池农业发展有限公司 | F23: 58.1 | G23: 经营主体每亩补助300元 | H23: 17430 | I23: 衔接资金 | J23: 2024年1月-12月 | K23: 通过土地流转使享受政策的建档立卡户每亩增收200元，经营主体每亩补助300元。 | L23: 项目实施将带动低收入人口增加收入，增加务工就业机会，群众满意。
A24: 20 | B24: 封丘县陈桥镇(陈桥村股份经济合作社)土地流转奖补项目 | C24: 对经营主体和19户流出土地的贫困户进行奖补，流转土地42.09亩。 | D24: 陈桥镇陈桥村 | E24: 封丘县陈桥镇陈桥村股份经济合作社 | F24: 42.09 | G24: 经营主体每亩补助300元 | H24: 12627 | I24: 衔接资金 | J24: 2024年1月-12月 | K24: 通过土地流转使享受政策的建档立卡户每亩增收200元，经营主体每亩补助300元。 | L24: 项目实施将带动低收入人口增加收入，增加务工就业机会，群众满意。
A25: 21 | B25: 封丘县陈桥镇(盛道生态种植专业合作社)土地流转奖补项目 | C25: 对经营主体和4户流出土地的贫困户进行奖补，流转土地12.81亩。 | D25: 陈桥镇贺寨村 | E25: 封丘县陈桥镇盛道生态种植专业合作社 | F25: 12.81 | G25: 经营主体每亩补助300元 | H25: 3843 | I25: 衔接资金 | J25: 2024年1月-12月 | K25: 通过土地流转使享受政策的建档立卡户每亩增收200元，经营主体每亩补助300元。 | L25: 项目实施将带动低收入人口增加收入，增加务工就业机会，群众满意。
A26: 22 | B26: 封丘县陈固镇(新中土地流转合作社)土地流转奖补项目 | C26: 对经营主体和3户流出土地的贫困户进行奖补，流转土地17.19亩。 | D26: 陈固镇东守宫村 | E26: 封丘县新中土地流转合作社 | F26: 17.19 | G26: 经营主体每亩补助300元 | H26: 5157 | I26: 衔接资金 | J26: 2024年1月-12月 | K26: 通过土地流转使享受政策的建档立卡户每亩增收200元，经营主体每亩补助300元。 | L26: 项目实施将带动低收入人口增加收入，增加务工就业机会，群众满意。
A27: 23 | B27: 封丘县陈固镇(西域土地流转专业合作社)土地流转奖补项目 | C27: 对经营主体和6户流出土地的贫困户进行奖补，流转土地59.65亩。 | D27: 陈固镇梅口村 | E27: 封丘县西域土地流转专业合作社 | F27: 59.65 | G27: 经营主体每亩补助300元 | H27: 17895 | I27: 衔接资金 | J27: 2024年1月-12月 | K27: 通过土地流转使享受政策的建档立卡户每亩增收200元，经营主体每亩补助300元。 | L27: 项目实施将带动低收入人口增加收入，增加务工就业机会，群众满意。
A28: 24 | B28: 封丘县陈固镇(士伟土地流转合作社)土地流转奖补项目 | C28: 对经营主体和2户流出土地的贫困户进行奖补，流转土地15.87亩。 | D28: 陈固镇后李湾村 | E28: 封丘县士伟土地流转合作社 | F28: 15.87 | G28: 经营主体每亩补助300元 | H28: 4761 | I28: 衔接资金 | J28: 2024年1月-12月 | K28: 通过土地流转使享受政策的建档立卡户每亩增收200元，经营主体每亩补助300元。 | L28: 项目实施将带动低收入人口增加收入，增加务工就业机会，群众满意。
A29: 25 | B29: 封丘县赵岗镇(永峰家庭农场)土地流转奖补项目 | C29: 对经营主体和5户流出土地的贫困户进行奖补，流转土地35.1亩。 | D29: 赵岗镇惠寨村 | E29: 封丘县永峰家庭农场 | F29: 35.1 | G29: 经营主体每亩补助300元 | H29: 10530 | I29: 衔接资金 | J29: 2024年1月-12月 | K29: 通过土地流转使享受政策的建档立卡户每亩增收200元，经营主体每亩补助300元。 | L29: 项目实施将带动低收入人口增加收入，增加务工就业机会，群众满意。
A30: 26 | B30: 封丘县留光镇(西林庄吉丰种植专业合作社)土地流转奖补项目 | C30: 对经营主体和16户流出土地的贫困户进行奖补，流转土地62.13亩。 | D30: 留光镇西林庄 | E30: 封丘县西林庄吉丰种植专业合作社 | F30: 62.13 | G30: 经营主体每亩补助300元 | H30: 18639 | I30: 衔接资金 | J30: 2024年1月-12月 | K30: 通过土地流转使享受政策的建档立卡户每亩增收200元，经营主体每亩补助300元。 | L30: 项目实施将带动低收入人口增加收入，增加务工就业机会，群众满意。
A31: 27 | B31: 封丘县留光镇(俊波种植专业合作社)土地流转奖补项目 | C31: 对经营主体和2户流出土地的贫困户进行奖补，流转土地10.89亩。 | D31: 留光镇西林庄 | E31: 封丘县俊波种植专业合作社 | F31: 10.89 | G31: 经营主体每亩补助300元 | H31: 3267 | I31: 衔接资金 | J31: 2024年1月-12月 | K31: 通过土地流转使享受政策的建档立卡户每亩增收200元，经营主体每亩补助300元。 | L31: 项目实施将带动低收入人口增加收入，增加务工就业机会，群众满意。
A32: 28 | B32: 封丘县留光镇（海港种植家庭农场）土地流转奖补项目 | C32: 对经营主体和23户流出土地的贫困户进行奖补，流转土地102.72亩。 | D32: 留光镇合城 | E32: 封丘县海港种植家庭农场 | F32: 102.72 | G32: 经营主体每亩补助300元 | H32: 30816 | I32: 衔接资金 | J32: 2024年1月-12月 | K32: 通过土地流转使享受政策的建档立卡户每亩增收200元，经营主体每亩补助300元。 | L32: 项目实施将带动低收入人口增加收入，增加务工就业机会，群众满意。
A33: 29 | B33: 封丘县留光镇（鼎力种植专业合作社）土地流转奖补项目 | C33: 对经营主体和8户流出土地的贫困户进行奖补，流转土地41.08亩。 | D33: 留光镇留固村 | E33: 封丘县鼎力种植专业合作社 | F33: 41.08 | G33: 经营主体每亩补助300元 | H33: 12324 | I33: 衔接资金 | J33: 2024年1月-12月 | K33: 通过土地流转使享受政策的建档立卡户每亩增收200元，经营主体每亩补助300元。 | L33: 项目实施将带动低收入人口增加收入，增加务工就业机会，群众满意。
A34: 30 | B34: 封丘县留光镇（安超家庭农场）土地流转奖补项目 | C34: 对经营主体和17户流出土地的贫困户进行奖补，流转土地50.41亩。 | D34: 留光镇留固村 | E34: 封丘县安超家庭农场 | F34: 50.41 | G34: 经营主体每亩补助300元 | H34: 15123 | I34: 衔接资金 | J34: 2024年1月-12月 | K34: 通过土地流转使享受政策的建档立卡户每亩增收200元，经营主体每亩补助300元。 | L34: 项目实施将带动低收入人口增加收入，增加务工就业机会，群众满意。
A35: 31 | B35: 封丘县留光镇（华领种植专业合作社）土地流转奖补项目 | C35: 对经营主体和5户流出土地的贫困户进行奖补，流转土地16.8亩。 | D35: 留光镇于庄 | E35: 封丘县华领种植专业合作社 | F35: 16.8 | G35: 经营主体每亩补助300元 | H35: 5040 | I35: 衔接资金 | J35: 2024年1月-12月 | K35: 通过土地流转使享受政策的建档立卡户每亩增收200元，经营主体每亩补助300元。 | L35: 项目实施将带动低收入人口增加收入，增加务工就业机会，群众满意。
A36: 32 | B36: 封丘县留光镇（青青康种植专业合作社）土地流转奖补项目 | C36: 对经营主体和51户流出土地的贫困户进行奖补，流转土地84.67亩。 | D36: 留光镇李王庄 | E36: 封丘县青青康种植专业合作社 | F36: 84.67 | G36: 经营主体每亩补助300元 | H36: 25401 | I36: 衔接资金 | J36: 2024年1月-12月 | K36: 通过土地流转使享受政策的建档立卡户每亩增收200元，经营主体每亩补助300元。 | L36: 项目实施将带动低收入人口增加收入，增加务工就业机会，群众满意。
A37: 33 | B37: 封丘县留光镇（建康家庭农场）土地流转奖补项目 | C37: 对经营主体和1户流出土地的贫困户进行奖补，流转土地10.26亩。 | D37: 留光镇中王庄 | E37: 封丘县建康家庭农场 | F37: 10.26 | G37: 经营主体每亩补助300元 | H37: 3078 | I37: 衔接资金 | J37: 2024年1月-12月 | K37: 通过土地流转使享受政策的建档立卡户每亩增收200元，经营主体每亩补助300元。 | L37: 项目实施将带动低收入人口增加收入，增加务工就业机会，群众满意。
A38: 34 | B38: 封丘县李庄镇(河南格瑞佳农业科技有限公司)土地流转奖补项目 | C38: 对经营主体和130户流转土地的贫困户进行奖补，流转土地521.93亩。 | D38: 李庄镇前辛庄村、后辛庄村、贯台村、张曹村 | E38: 河南格瑞佳农业科技有限公司 | F38: 521.93 | G38: 经营主体每亩补助300元 | H38: =F38*300 -> 156579 | I38: 衔接资金 | J38: 2024年1月-12月 | K38: 通过土地流转使享受政策的建档立卡户每亩增收200元，经营主体每亩补助315元。 | L38: 项目实施将带动低收入人口增加收入，增加务工就业机会，群众满意。
A39: 35 | B39: 封丘县李庄镇(东浩种植专业合作社)土地流转奖补项目 | C39: 对经营主体和52户流转土地的贫困户进行奖补，流转土地148.679亩。 | D39: 李庄镇前辛庄村、南曹村 | E39: 封丘县东浩种植专业合作社 | F39: 148.679 | G39: 经营主体每亩补助300元 | H39: 44603.7 | I39: 衔接资金 | J39: 2024年1月-12月 | K39: 通过土地流转使享受政策的建档立卡户每亩增收200元，经营主体每亩补助322元。 | L39: 项目实施将带动低收入人口增加收入，增加务工就业机会，群众满意。
A40: 36 | B40: 封丘县李庄镇(封新禾种植专业合作社)土地流转奖补项目 | C40: 对经营主体和2户流转土地的贫困户进行奖补，流转土地70.564亩。 | D40: 李庄镇贯台村 | E40: 封丘县封新禾种植专业合作社 | F40: 70.564 | G40: 经营主体每亩补助300元 | H40: 21169.2 | I40: 衔接资金 | J40: 2024年1月-12月 | K40: 通过土地流转使享受政策的建档立卡户每亩增收200元，经营主体每亩补助311元。 | L40: 项目实施将带动低收入人口增加收入，增加务工就业机会，群众满意。
A41: 37 | B41: 封丘县李庄镇(彤鑫农业家庭农场)土地流转奖补项目 | C41: 对经营主体和6户流转土地的贫困户进行奖补，流转土地42.2亩。 | D41: 李庄镇贯台村 | E41: 封丘县彤鑫农业家庭农场 | F41: 42.2 | G41: 经营主体每亩补助300元 | H41: 12660 | I41: 衔接资金 | J41: 2024年1月-12月 | K41: 通过土地流转使享受政策的建档立卡户每亩增收200元，经营主体每亩补助310元。 | L41: 项目实施将带动低收入人口增加收入，增加务工就业机会，群众满意。
A42: 38 | B42: 封丘县李庄镇(恩英家庭农场)土地流转奖补项目 | C42: 对经营主体和3户流转土地的贫困户进行奖补，流转土地43亩。 | D42: 李庄镇贯台村 | E42: 封丘县李庄镇恩英家庭农场 | F42: 43 | G42: 经营主体每亩补助300元 | H42: 12900 | I42: 衔接资金 | J42: 2024年1月-12月 | K42: 通过土地流转使享受政策的建档立卡户每亩增收200元，经营主体每亩补助308元。 | L42: 项目实施将带动低收入人口增加收入，增加务工就业机会，群众满意。
A43: 39 | B43: 封丘县李庄镇(天蓝农业种植养殖专业合作社)土地流转奖补项目 | C43: 对经营主体和16户流转土地的贫困户进行奖补，流转土地38.47亩。 | D43: 李庄镇后辛庄村 | E43: 封丘县天蓝农业种植养殖专业合作社 | F43: 38.47 | G43: 经营主体每亩补助300元 | H43: 11541 | I43: 衔接资金 | J43: 2024年1月-12月 | K43: 通过土地流转使享受政策的建档立卡户每亩增收200元，经营主体每亩补助320元。 | L43: 项目实施将带动低收入人口增加收入，增加务工就业机会，群众满意。
A44: 40 | B44: 封丘县李庄镇（从众种植专业合作社）土地流转奖补项目 | C44: 对经营主体和10户流转土地的贫困户进行奖补，流转土地38.029亩。 | D44: 李庄镇竹岗村 | E44: 封丘县从众种植专业合作社 | F44: 38.029 | G44: 经营主体每亩补助300元 | H44: 11408.7 | I44: 衔接资金 | J44: 2024年1月-12月 | K44: 通过土地流转使享受政策的建档立卡户每亩增收200元，经营主体每亩补助300元。 | L44: 项目实施将带动低收入人口增加收入，增加务工就业机会，群众满意。
A45: 41 | B45: 封丘县李庄镇（豫柱家庭农场）土地流转奖补项目 | C45: 对经营主体和3户流转土地的贫困户进行奖补，流转土地14.8亩。 | D45: 李庄镇朱寨村 | E45: 封丘县李庄镇豫柱家庭农场 | F45: 14.8 | G45: 经营主体每亩补助300元 | H45: 4440 | I45: 衔接资金 | J45: 2024年1月-12月 | K45: 通过土地流转使享受政策的建档立卡户每亩增收200元，经营主体每亩补助306元。 | L45: 项目实施将带动低收入人口增加收入，增加务工就业机会，群众满意。
A46: 42 | B46: 封丘县李庄镇(安乐种植家庭农场)土地流转奖补项目 | C46: 对经营主体和2户流转土地的贫困户进行奖补，流转土地10.36亩。 | D46: 李庄镇苦庄村 | E46: 封丘县安乐种植家庭农场 | F46: 10.36 | G46: 经营主体每亩补助300元 | H46: 3108 | I46: 衔接资金 | J46: 2024年1月-12月 | K46: 通过土地流转使享受政策的建档立卡户每亩增收200元，经营主体每亩补助318元。 | L46: 项目实施将带动低收入人口增加收入，增加务工就业机会，群众满意。
A47: 43 | B47: 封丘县李庄镇(创富苗木种植专业合作社)土地流转奖补项目 | C47: 对经营主体和58户流转土地的贫困户进行奖补，流转土地119.69亩。 | D47: 李庄镇前辛庄 | E47: 封丘县创富苗木种植专业合作社 | F47: 119.69 | G47: 经营主体每亩补助300元 | H47: 35907 | I47: 衔接资金 | J47: 2024年1月-12月 | K47: 通过土地流转使享受政策的建档立卡户每亩增收200元，经营主体每亩补助323元。 | L47: 项目实施将带动低收入人口增加收入，增加务工就业机会，群众满意。
A48: 44 | B48: 封丘县李庄镇(雷得生养殖家庭农场)土地流转奖补项目 | C48: 对经营主体和1户流转土地的贫困户进行奖补，流转土地3.97亩。 | D48: 李庄镇竹岗村 | E48: 封丘县雷得生养殖家庭农场 | F48: 3.97 | G48: 经营主体每亩补助300元 | H48: 1191 | I48: 衔接资金 | J48: 2024年1月-12月 | K48: 通过土地流转使享受政策的建档立卡户每亩增收200元，经营主体每亩补助324元。 | L48: 项目实施将带动低收入人口增加收入，增加务工就业机会，群众满意。
A49: 45 | B49: 封丘县李庄镇(聚源种植专业合作社)土地流转奖补项目 | C49: 对经营主体和7户流转土地的贫困户进行奖补，流转土地42.55亩。 | D49: 李庄镇堤湾村 | E49: 封丘县李庄镇聚源种植专业合作社 | F49: 42.55 | G49: 经营主体每亩补助300元 | H49: 12765 | I49: 衔接资金 | J49: 2024年1月-12月 | K49: 通过土地流转使享受政策的建档立卡户每亩增收200元，经营主体每亩补助326元。 | L49: 项目实施将带动低收入人口增加收入，增加务工就业机会，群众满意。
A50: 46 | B50: 封丘李庄镇(梦飞养殖种植合作社)土地流转奖补项目 | C50: 对经营主体和9户流转土地的贫困户进行奖补，流转土地49.3亩。 | D50: 李庄镇苦庄村、竹岗村 | E50: 封丘李庄镇梦飞养殖种植合作社 | F50: 49.3 | G50: 经营主体每亩补助300元 | H50: 14790 | I50: 衔接资金 | J50: 2024年1月-12月 | K50: 通过土地流转使享受政策的建档立卡户每亩增收200元，经营主体每亩补助317元。 | L50: 项目实施将带动低收入人口增加收入，增加务工就业机会，群众满意。
A51: 47 | B51: 封丘县李庄镇（海鹏种植家庭农场)土地流转奖补项目 | C51: 对经营主体和7户流转土地的贫困户进行奖补，流转土地7.06亩。 | D51: 李庄镇竹岗村 | E51: 封丘县海鹏种植家庭农场 | F51: 7.06 | G51: 经营主体每亩补助300元 | H51: 2118 | I51: 衔接资金 | J51: 2024年1月-12月 | K51: 通过土地流转使享受政策的建档立卡户每亩增收200元，经营主体每亩补助307元。 | L51: 项目实施将带动低收入人口增加收入，增加务工就业机会，群众满意。
A52: 48 | B52: 封丘县李庄镇(获嘉县福茂林专业合作社)土地流转奖补项目 | C52: 对经营主体和59户流转土地的贫困户进行奖补，流转土地197.232亩。 | D52: 李庄镇前辛庄、后辛庄、贯台、张曹 | E52: 获嘉县福茂林专业合作社 | F52: 197.232 | G52: 经营主体每亩补助300元 | H52: 59169.6 | I52: 衔接资金 | J52: 2024年1月-12月 | K52: 通过土地流转使享受政策的建档立卡户每亩增收200元，经营主体每亩补助313元。 | L52: 项目实施将带动低收入人口增加收入，增加务工就业机会，群众满意。
A53: 49 | B53: 封丘县李庄镇（河南绿碧源农林开发有限公司）土地流转奖补项目 | C53: 对经营主体和19户流转土地的贫困户进行奖补，流转土地136.06亩。 | D53: 李庄镇常东村 | E53: 河南绿碧源农林开发有限公司 | F53: 136.06 | G53: 经营主体每亩补助300元 | H53: 40818 | I53: 衔接资金 | J53: 2024年1月-12月 | K53: 通过土地流转使享受政策的建档立卡户每亩增收200元，经营主体每亩补助301元。 | L53: 项目实施将带动低收入人口增加收入，增加务工就业机会，群众满意。
A54: 50 | B54: 封丘县李庄镇(宝亮家庭农场)土地流转奖补项目 | C54: 对经营主体和28户流转土地的贫困户进行奖补，流转土地43.03亩。 | D54: 李庄镇俄湾村 | E54: 封丘县李庄镇宝亮家庭农场 | F54: 43.03 | G54: 经营主体每亩补助300元 | H54: 12909 | I54: 衔接资金 | J54: 2024年1月-12月 | K54: 通过土地流转使享受政策的建档立卡户每亩增收200元，经营主体每亩补助309元。 | L54: 项目实施将带动低收入人口增加收入，增加务工就业机会，群众满意。
A55: 51 | B55: 封丘县李庄镇(峰桐农业发展有限公司)土地流转奖补项目 | C55: 对经营主体和28户流转土地的贫困户进行奖补，流转土地64.39亩。 | D55: 李庄镇俄湾村、南曹村 | E55: 封丘县峰桐农业发展有限公司 | F55: 64.39 | G55: 经营主体每亩补助300元 | H55: 19317 | I55: 衔接资金 | J55: 2024年1月-12月 | K55: 通过土地流转使享受政策的建档立卡户每亩增收200元，经营主体每亩补助312元。 | L55: 项目实施将带动低收入人口增加收入，增加务工就业机会，群众满意。
A56: 52 | B56: 封丘县李庄镇(金鑫土地流转专业合作社)土地流转奖补项目 | C56: 对经营主体和70户流转土地的贫困户进行奖补，流转土地97.599亩。 | D56: 李庄镇朱寨村 | E56: 封丘县金鑫土地流转专业合作社 | F56: 97.599 | G56: 经营主体每亩补助300元 | H56: 29279.7 | I56: 衔接资金 | J56: 2024年1月-12月 | K56: 通过土地流转使享受政策的建档立卡户每亩增收200元，经营主体每亩补助314元。 | L56: 项目实施将带动低收入人口增加收入，增加务工就业机会，群众满意。
A57: 53 | B57: 封丘县李庄镇（桃缘农业种养专业合作社）土地流转奖补项目 | C57: 对经营主体和10户流转土地的贫困户进行奖补，流转土地10.76亩。 | D57: 李庄镇竹岗村 | E57: 封丘县李庄镇竹岗桃缘农业种养专业合作社 | F57: 10.76 | G57: 经营主体每亩补助300元 | H57: 3228 | I57: 衔接资金 | J57: 2024年1月-12月 | K57: 通过土地流转使享受政策的建档立卡户每亩增收200元，经营主体每亩补助305元。 | L57: 项目实施将带动低收入人口增加收入，增加务工就业机会，群众满意。
A58: 54 | B58: 封丘县李庄镇(黄河农产种植家庭农场)土地流转奖补项目 | C58: 对经营主体和9户流转土地的贫困户进行奖补，流转土地12.674亩。 | D58: 李庄镇贯台村 | E58: 封丘县黄河农产种植家庭农场 | F58: 12.674 | G58: 经营主体每亩补助300元 | H58: 3802.2 | I58: 衔接资金 | J58: 2024年1月-12月 | K58: 通过土地流转使享受政策的建档立卡户每亩增收200元，经营主体每亩补助316元。 | L58: 项目实施将带动低收入人口增加收入，增加务工就业机会，群众满意。
A59: 55 | B59: 封丘县李庄镇(大河湾发展有限公司)土地流转奖补项目 | C59: 对经营主体和5户流转土地的贫困户进行奖补，流转土地7.22亩。 | D59: 李庄镇后辛庄村 | E59: 封丘县大河湾发展有限公司 | F59: 7.22 | G59: 经营主体每亩补助300元 | H59: 2166 | I59: 衔接资金 | J59: 2024年1月-12月 | K59: 通过土地流转使享受政策的建档立卡户每亩增收200元，经营主体每亩补助321元。 | L59: 项目实施将带动低收入人口增加收入，增加务工就业机会，群众满意。
A60: 56 | B60: 封丘县李庄镇（河南京香豫生物科技有限公司）土地流转奖补项目 | C60: 对经营主体和9户流转土地的贫困户进行奖补，流转土地34亩。 | D60: 李庄镇竹岗村 | E60: 河南京香豫生物科技有限公司 | F60: 34 | G60: 经营主体每亩补助300元 | H60: 10200 | I60: 衔接资金 | J60: 2024年1月-12月 | K60: 通过土地流转使享受政策的建档立卡户每亩增收200元，经营主体每亩补助302元。 | L60: 项目实施将带动低收入人口增加收入，增加务工就业机会，群众满意。
A61: 57 | B61: 封丘县李庄镇(闰土家庭农场)土地流转奖补项目 | C61: 对经营主体和23户流转土地的贫困户进行奖补，流转土地51.824亩。 | D61: 李庄镇贯台村 | E61: 封丘县闰土家庭农场 | F61: 51.824 | G61: 经营主体每亩补助300元 | H61: 15547.2 | I61: 衔接资金 | J61: 2024年1月-12月 | K61: 通过土地流转使享受政策的建档立卡户每亩增收200元，经营主体每亩补助327元。 | L61: 项目实施将带动低收入人口增加收入，增加务工就业机会，群众满意。
A62: 58 | B62: 封丘县李庄镇（顺科种植家庭农场）土地流转奖补项目 | C62: 对经营主体和9户流转土地的贫困户进行奖补，流转土地16.11亩。 | D62: 李庄镇李庄村 | E62: 封丘县顺科种植家庭农场 | F62: 16.11 | G62: 经营主体每亩补助300元 | H62: 4833 | I62: 衔接资金 | J62: 2024年1月-12月 | K62: 通过土地流转使享受政策的建档立卡户每亩增收200元，经营主体每亩补助303元。 | L62: 项目实施将带动低收入人口增加收入，增加务工就业机会，群众满意。
A63: 59 | B63: 封丘县李庄镇(新乡市鸿程林业有限公司)土地流转奖补项目 | C63: 对经营主体和11户流转土地的贫困户进行奖补，流转土地53.3511亩。 | D63: 李庄镇薛郭庄村 | E63: 新乡市鸿程林业有限公司 | F63: 53.3511 | G63: 经营主体每亩补助300元 | H63: 16005.33 | I63: 衔接资金 | J63: 2024年1月-12月 | K63: 通过土地流转使享受政策的建档立卡户每亩增收200元，经营主体每亩补助319元。 | L63: 项目实施将带动低收入人口增加收入，增加务工就业机会，群众满意。
A64: 60 | B64: 封丘县李庄镇(丰硕家庭农场)土地流转奖补项目 | C64: 对经营主体和9户流转土地的贫困户进行奖补，流转土地19.4亩。 | D64: 李庄镇堤湾村 | E64: 封丘县李庄镇丰硕家庭农场 | F64: 19.4 | G64: 经营主体每亩补助300元 | H64: 5820 | I64: 衔接资金 | J64: 2024年1月-12月 | K64: 通过土地流转使享受政策的建档立卡户每亩增收200元，经营主体每亩补助325元。 | L64: 项目实施将带动低收入人口增加收入，增加务工就业机会，群众满意。
A65: 61 | B65: 封丘县李庄镇（清河家庭农场）土地流转奖补项目 | C65: 对经营主体和3户流转土地的贫困户进行奖补，流转土地104.32亩。 | D65: 李庄镇贯台、李庄村 | E65: 封丘县李庄镇清河家庭农场 | F65: 104.32 | G65: 经营主体每亩补助300元 | H65: 31296 | I65: 衔接资金 | J65: 2024年1月-12月 | K65: 通过土地流转使享受政策的建档立卡户每亩增收200元，经营主体每亩补助304元。 | L65: 项目实施将带动低收入人口增加收入，增加务工就业机会，群众满意。
A66: 合 计 | F66: =SUM(F5:F65) -> 3226.2721 | H66: =SUM(H5:H65) -> 967881.63

Sheet 乡村公示
A1: 2024年封丘县土地流转奖补项目公告公示明细表（1）
A2: 日期： | B2: 2024年6月18日-28日 | K2: 单位：元
A3: 序号 | B3: 项目 名称 | C3: 建设内容 | D3: 乡（镇）村 | E3: 户 名 | F3: 流转土地面积（亩） | G3: 补助标准 | H3: 补助金额 | I3: 资金来源 | J3: 建设期限 | K3: 绩效目标 | L3: 利益联结机制 | M3: 备注
A4: 1 | B4: 封丘县王村乡（携缘合种植专业合作社）土地流转奖补项目 | C4: 对经营主体和11户流转土地的贫困户进行奖补，流转土地51.54亩。 | D4: 王村乡北孟庄村 | E4: 边亮 | F4: 8.49 | G4: 贫困户每亩补助200元 | H4: 1698.00 | I4: 衔接资金 | J4: 2024年1月-12月 | K4: 通过土地流转使享受政策的建档立卡户每亩增收200元，经营主体每亩补助300元。 | L4: 项目实施将带动低收入人口增加收入，增加务工就业机会，群众满意。
A5: 2 | D5: 王村乡北孟庄村 | E5: 陈喜梅 | F5: 1.19 | G5: 贫困户每亩补助200元 | H5: 238.00 | I5: 衔接资金 | J5: 2024年1月-12月 | K5: 通过土地流转使享受政策的建档立卡户每亩增收200元，经营主体每亩补助300元。 | L5: 项目实施将带动低收入人口增加收入，增加务工就业机会，群众满意。
A6: 3 | D6: 王村乡北孟庄村 | E6: 刘举胜 | F6: 6.5 | G6: 贫困户每亩补助200元 | H6: 1300.00 | I6: 衔接资金 | J6: 2024年1月-12月 | K6: 通过土地流转使享受政策的建档立卡户每亩增收200元，经营主体每亩补助300元。 | L6: 项目实施将带动低收入人口增加收入，增加务工就业机会，群众满意。
A7: 4 | D7: 王村乡北孟庄村 | E7: 刘士正 | F7: 2.03 | G7: 贫困户每亩补助200元 | H7: 406.00 | I7: 衔接资金 | J7: 2024年1月-12月 | K7: 通过土地流转使享受政策的建档立卡户每亩增收200元，经营主体每亩补助300元。 | L7: 项目实施将带动低收入人口增加收入，增加务工就业机会，群众满意。
A8: 5 | D8: 王村乡北孟庄村 | E8: 刘传路 | F8: 3.42 | G8: 贫困户每亩补助200元 | H8: 684.00 | I8: 衔接资金 | J8: 2024年1月-12月 | K8: 通过土地流转使享受政策的建档立卡户每亩增收200元，经营主体每亩补助300元。 | L8: 项目实施将带动低收入人口增加收入，增加务工就业机会，群众满意。
A9: 6 | D9: 王村乡北孟庄村 | E9: 刘勋正 | F9: 6.5 | G9: 贫困户每亩补助200元 | H9: 1300.00 | I9: 衔接资金 | J9: 2024年1月-12月 | K9: 通过土地流转使享受政策的建档立卡户每亩增收200元，经营主体每亩补助300元。 | L9: 项目实施将带动低收入人口增加收入，增加务工就业机会，群众满意。
A10: 7 | D10: 王村乡北孟庄村 | E10: 汪树芹 | F10: 4.8 | G10: 贫困户每亩补助200元 | H10: 960.00 | I10: 衔接资金 | J10: 2024年1月-12月 | K10: 通过土地流转使享受政策的建档立卡户每亩增收200元，经营主体每亩补助300元。 | L10: 项目实施将带动低收入人口增加收入，增加务工就业机会，群众满意。
A11: 8 | D11: 王村乡北孟庄村 | E11: 马秀真 | F11: 1.07 | G11: 贫困户每亩补助200元 | H11: 214.00 | I11: 衔接资金 | J11: 2024年1月-12月 | K11: 通过土地流转使享受政策的建档立卡户每亩增收200元，经营主体每亩补助300元。 | L11: 项目实施将带动低收入人口增加收入，增加务工就业机会，群众满意。
A12: 9 | D12: 王村乡北孟庄村 | E12: 刘万正 | F12: 2.4 | G12: 贫困户每亩补助200元 | H12: 480.00 | I12: 衔接资金 | J12: 2024年1月-12月 | K12: 通过土地流转使享受政策的建档立卡户每亩增收200元，经营主体每亩补助300元。 | L12: 项目实施将带动低收入人口增加收入，增加务工就业机会，群众满意。
A13: 10 | D13: 王村乡北孟庄村 | E13: 刘学正 | F13: 4 | G13: 贫困户每亩补助200元 | H13: 800.00 | I13: 衔接资金 | J13: 2024年1月-12月 | K13: 通过土地流转使享受政策的建档立卡户每亩增收200元，经营主体每亩补助300元。 | L13: 项目实施将带动低收入人口增加收入，增加务工就业机会，群众满意。
A14: 11 | D14: 王村乡北孟庄村 | E14: 边玉峰 | F14: 7.2 | G14: 贫困户每亩补助200元 | H14: 1440.00 | I14: 衔接资金 | J14: 2024年1月-12月 | K14: 通过土地流转使享受政策的建档立卡户每亩增收200元，经营主体每亩补助300元。 | L14: 项目实施将带动低收入人口增加收入，增加务工就业机会，群众满意。
A15: 12 | B15: 封丘县王村乡（喜相逢种植专业合作社）土地流转奖补项目 | C15: 对经营主体和2户流转土地的贫困户进行奖补，流转土地7.8亩。 | D15: 王村乡尚庄村 | E15: 季荣安 | F15: 5.16 | G15: 贫困户每亩补助200元 | H15: 1032.00 | I15: 衔接资金 | J15: 2024年1月-12月 | K15: 通过土地流转使享受政策的建档立卡户每亩增收200元，经营主体每亩补助300元。 | L15: 项目实施将带动低收入人口增加收入，增加务工就业机会，群众满意。
A16: 13 | D16: 王村乡尚庄村 | E16: 杜义章 | F16: 2.64 | G16: 贫困户每亩补助200元 | H16: 528.00 | I16: 衔接资金 | J16: 2024年1月-12月 | K16: 通过土地流转使享受政策的建档立卡户每亩增收200元，经营主体每亩补助300元。 | L16: 项目实施将带动低收入人口增加收入，增加务工就业机会，群众满意。
A17: 14 | B17: 封丘县黄陵镇（建伟农业家庭农场）土地流转奖补项目 | C17: 对经营主体和3户流转土地的贫困户进行奖补，流转土地17.53亩。 | D17: 黄陵镇陈寨村 | E17: 陈付运 | F17: 6.03 | G17: 贫困户每亩补助200元 | H17: 1206.00 | I17: 衔接资金 | J17: 2023年1月-12月 | K17: 通过土地流转使享受政策的建档立卡户每亩增收200元，经营主体每亩补助300元。 | L17: 项目实施将带动低收入人口增加收入，增加务工就业机会，群众满意。
A18: 15 | D18: 黄陵镇陈寨村 | E18: 陈学亮 | F18: 3.3 | G18: 贫困户每亩补助200元 | H18: 660.00 | I18: 衔接资金 | J18: 2023年1月-12月 | K18: 通过土地流转使享受政策的建档立卡户每亩增收200元，经营主体每亩补助300元。 | L18: 项目实施将带动低收入人口增加收入，增加务工就业机会，群众满意。
A19: 16 | D19: 黄陵镇陈寨村 | E19: 李长莲 | F19: 8.2 | G19: 贫困户每亩补助200元 | H19: 1640.00 | I19: 衔接资金 | J19: 2023年1月-12月 | K19: 通过土地流转使享受政策的建档立卡户每亩增收200元，经营主体每亩补助300元。 | L19: 项目实施将带动低收入人口增加收入，增加务工就业机会，群众满意。
A20: 17 | B20: 封丘县黄陵镇（献振种植专业合作社）土地流转奖补项目 | C20: 对经营主体和10户流转土地的贫困户进行奖补，流转土地28.98亩。 | D20: 黄陵镇高村 | E20: 李守潮 | F20: 2.1 | G20: 贫困户每亩补助200元 | H20: 420.00 | I20: 衔接资金 | J20: 2023年1月-12月 | K20: 通过土地流转使享受政策的建档立卡户每亩增收200元，经营主体每亩补助300元。 | L20: 项目实施将带动低收入人口增加收入，增加务工就业机会，群众满意。
A21: 18 | D21: 黄陵镇高村 | E21: 李廷振 | F21: 1.8 | G21: 贫困户每亩补助200元 | H21: 360.00 | I21: 衔接资金 | J21: 2023年1月-12月 | K21: 通过土地流转使享受政策的建档立卡户每亩增收200元，经营主体每亩补助300元。 | L21: 项目实施将带动低收入人口增加收入，增加务工就业机会，群众满意。
A22: 19 | D22: 黄陵镇高村 | E22: 李守田 | F22: 6 | G22: 贫困户每亩补助200元 | H22: 1200.00 | I22: 衔接资金 | J22: 2023年1月-12月 | K22: 通过土地流转使享受政策的建档立卡户每亩增收200元，经营主体每亩补助300元。 | L22: 项目实施将带动低收入人口增加收入，增加务工就业机会，群众满意。
A23: 20 | D23: 黄陵镇高村 | E23: 孙留记 | F23: 2.25 | G23: 贫困户每亩补助200元 | H23: 450.00 | I23: 衔接资金 | J23: 2023年1月-12月 | K23: 通过土地流转使享受政策的建档立卡户每亩增收200元，经营主体每亩补助300元。 | L23: 项目实施将带动低收入人口增加收入，增加务工就业机会，群众满意。
A24: 21 | D24: 黄陵镇高村 | E24: 李守根 | F24: 5.07 | G24: 贫困户每亩补助200元 | H24: 1014.00 | I24: 衔接资金 | J24: 2023年1月-12月 | K24: 通过土地流转使享受政策的建档立卡户每亩增收200元，经营主体每亩补助300元。 | L24: 项目实施将带动低收入人口增加收入，增加务工就业机会，群众满意。
A25: 22 | D25: 黄陵镇高村 | E25: 李守坤 | F25: 2.9 | G25: 贫困户每亩补助200元 | H25: 580.00 | I25: 衔接资金 | J25: 2023年1月-12月 | K25: 通过土地流转使享受政策的建档立卡户每亩增收200元，经营主体每亩补助300元。 | L25: 项目实施将带动低收入人口增加收入，增加务工就业机会，群众满意。
A26: 23 | D26: 黄陵镇高村 | E26: 刘景连 | F26: 2.54 | G26: 贫困户每亩补助200元 | H26: 508.00 | I26: 衔接资金 | J26: 2023年1月-12月 | K26: 通过土地流转使享受政策的建档立卡户每亩增收200元，经营主体每亩补助300元。 | L26: 项目实施将带动低收入人口增加收入，增加务工就业机会，群众满意。
A27: 24 | D27: 黄陵镇高村 | E27: 韩同卫 | F27: 2.64 | G27: 贫困户每亩补助200元 | H27: 528.00 | I27: 衔接资金 | J27: 2023年1月-12月 | K27: 通过土地流转使享受政策的建档立卡户每亩增收200元，经营主体每亩补助300元。 | L27: 项目实施将带动低收入人口增加收入，增加务工就业机会，群众满意。
A28: 25 | D28: 黄陵镇高村 | E28: 李守平 | F28: 2.71 | G28: 贫困户每亩补助200元 | H28: 542.00 | I28: 衔接资金 | J28: 2023年1月-12月 | K28: 通过土地流转使享受政策的建档立卡户每亩增收200元，经营主体每亩补助300元。 | L28: 项目实施将带动低收入人口增加收入，增加务工就业机会，群众满意。
A29: 26 | D29: 黄陵镇高村 | E29: 孙正国 | F29: 0.97 | G29: 贫困户每亩补助200元 | H29: 194.00 | I29: 衔接资金 | J29: 2023年1月-12月 | K29: 通过土地流转使享受政策的建档立卡户每亩增收200元，经营主体每亩补助300元。 | L29: 项目实施将带动低收入人口增加收入，增加务工就业机会，群众满意。
A30: 27 | B30: 封丘县黄陵镇（胜源种植场）土地流转奖补项目 | C30: 对经营主体和13户流转土地的贫困户进行奖补，流转土地67.77亩。 | D30: 黄陵镇平街村 | E30: 李性银 | F30: 1.5 | G30: 贫困户每亩补助200元 | H30: 300 | I30: 衔接资金 | J30: 2024年1月-12月 | K30: 通过土地流转使享受政策的建档立卡户每亩增收200元，经营主体每亩补助300元。 | L30: 项目实施将带动低收入人口增加收入，增加务工就业机会，群众满意。
A31: 28 | D31: 黄陵镇平街村 | E31: 李书贤 | F31: 2.19 | G31: 贫困户每亩补助200元 | H31: 438 | I31: 衔接资金 | J31: 2024年1月-12月 | K31: 通过土地流转使享受政策的建档立卡户每亩增收200元，经营主体每亩补助300元。 | L31: 项目实施将带动低收入人口增加收入，增加务工就业机会，群众满意。
A32: 29 | D32: 黄陵镇平街村 | E32: 李书民 | F32: 2.9 | G32: 贫困户每亩补助200元 | H32: 580 | I32: 衔接资金 | J32: 2024年1月-12月 | K32: 通过土地流转使享受政策的建档立卡户每亩增收200元，经营主体每亩补助300元。 | L32: 项目实施将带动低收入人口增加收入，增加务工就业机会，群众满意。
A33: 30 | D33: 黄陵镇平街村 | E33: 李保平 | F33: 3.69 | G33: 贫困户每亩补助200元 | H33: 738 | I33: 衔接资金 | J33: 2024年1月-12月 | K33: 通过土地流转使享受政策的建档立卡户每亩增收200元，经营主体每亩补助300元。 | L33: 项目实施将带动低收入人口增加收入，增加务工就业机会，群众满意。
A34: 31 | D34: 黄陵镇平街村 | E34: 李性亮 | F34: 1.62 | G34: 贫困户每亩补助200元 | H34: 324 | I34: 衔接资金 | J34: 2024年1月-12月 | K34: 通过土地流转使享受政策的建档立卡户每亩增收200元，经营主体每亩补助300元。 | L34: 项目实施将带动低收入人口增加收入，增加务工就业机会，群众满意。
A35: 32 | D35: 黄陵镇平街村 | E35: 李东海 | F35: =2.13+2+3.05 -> 7.18 | G35: 贫困户每亩补助200元 | H35: 1436 | I35: 衔接资金 | J35: 2024年1月-12月 | K35: 通过土地流转使享受政策的建档立卡户每亩增收200元，经营主体每亩补助300元。 | L35: 项目实施将带动低收入人口增加收入，增加务工就业机会，群众满意。
A36: 33 | D36: 黄陵镇平街村 | E36: 于运辉 | F36: 18.74 | G36: 贫困户每亩补助200元 | H36: 3748 | I36: 衔接资金 | J36: 2024年1月-12月 | K36: 通过土地流转使享受政策的建档立卡户每亩增收200元，经营主体每亩补助300元。 | L36: 项目实施将带动低收入人口增加收入，增加务工就业机会，群众满意。
A37: 34 | D37: 黄陵镇平街村 | E37: 李性江 | F37: 9.65 | G37: 贫困户每亩补助200元 | H37: 1930 | I37: 衔接资金 | J37: 2024年1月-12月 | K37: 通过土地流转使享受政策的建档立卡户每亩增收200元，经营主体每亩补助300元。 | L37: 项目实施将带动低收入人口增加收入，增加务工就业机会，群众满意。
A38: 35 | D38: 黄陵镇平街村 | E38: 李广河 | F38: =2.71+2.58 -> 5.29 | G38: 贫困户每亩补助200元 | H38: 1058 | I38: 衔接资金 | J38: 2024年1月-12月 | K38: 通过土地流转使享受政策的建档立卡户每亩增收200元，经营主体每亩补助300元。 | L38: 项目实施将带动低收入人口增加收入，增加务工就业机会，群众满意。
A39: 36 | D39: 黄陵镇平街村 | E39: 于运生 | F39: 2.5 | G39: 贫困户每亩补助200元 | H39: 500 | I39: 衔接资金 | J39: 2024年1月-12月 | K39: 通过土地流转使享受政策的建档立卡户每亩增收200元，经营主体每亩补助300元。 | L39: 项目实施将带动低收入人口增加收入，增加务工就业机会，群众满意。
A40: 37 | D40: 黄陵镇平街村 | E40: 李书岭 | F40: 5.22 | G40: 贫困户每亩补助200元 | H40: 1044 | I40: 衔接资金 | J40: 2024年1月-12月 | K40: 通过土地流转使享受政策的建档立卡户每亩增收200元，经营主体每亩补助300元。 | L40: 项目实施将带动低收入人口增加收入，增加务工就业机会，群众满意。
A41: 38 | D41: 黄陵镇平街村 | E41: 李书仁 | F41: 4.88 | G41: 贫困户每亩补助200元 | H41: 976 | I41: 衔接资金 | J41: 2024年1月-12月 | K41: 通过土地流转使享受政策的建档立卡户每亩增收200元，经营主体每亩补助300元。 | L41: 项目实施将带动低收入人口增加收入，增加务工就业机会，群众满意。
A42: 39 | D42: 黄陵镇平街村 | E42: 李书奇 | F42: 2.41 | G42: 贫困户每亩补助200元 | H42: 482 | I42: 衔接资金 | J42: 2024年1月-12月 | K42: 通过土地流转使享受政策的建档立卡户每亩增收200元，经营主体每亩补助300元。 | L42: 项目实施将带动低收入人口增加收入，增加务工就业机会，群众满意。
A43: 40 | B43: 封丘县鲁岗镇（中俊种植农场）土地流转奖补项目 | C43: 对经营主体和4户流转土地的贫困户进行奖补，流转土地 20.64亩。 | D43: 鲁岗镇和寨村 | E43: 钟天许 | F43: 5 | G43: 贫困户每亩补助200元 | H43: 1000 | I43: 衔接资金 | J43: 2024年1月-12月 | K43: 通过土地流转使享受政策的建档立卡户每亩增收200元，经营主体每亩补助300元。 | L43: 项目实施将带动低收入人口增加收入，增加务工就业机会，群众满意。
A44: 41 | D44: 鲁岗镇和寨村 | E44: 陈庆轩 | F44: 4.72 | G44: 贫困户每亩补助200元 | H44: 944 | I44: 衔接资金 | J44: 2024年1月-12月 | K44: 通过土地流转使享受政策的建档立卡户每亩增收200元，经营主体每亩补助300元。 | L44: 项目实施将带动低收入人口增加收入，增加务工就业机会，群众满意。
A45: 42 | D45: 鲁岗镇和寨村 | E45: 张秀芝 | F45: 6.72 | G45: 贫困户每亩补助200元 | H45: 1344 | I45: 衔接资金 | J45: 2024年1月-12月 | K45: 通过土地流转使享受政策的建档立卡户每亩增收200元，经营主体每亩补助300元。 | L45: 项目实施将带动低收入人口增加收入，增加务工就业机会，群众满意。
A46: 43 | D46: 鲁岗镇和寨村 | E46: 陈庆然 | F46: 4.2 | G46: 贫困户每亩补助200元 | H46: 840 | I46: 衔接资金 | J46: 2024年1月-12月 | K46: 通过土地流转使享受政策的建档立卡户每亩增收200元，经营主体每亩补助300元。 | L46: 项目实施将带动低收入人口增加收入，增加务工就业机会，群众满意。
A47: 44 | B47: 封丘县鲁岗镇（广记种植场）土地流转奖补项目 | C47: 对经营主体和1户流转土地的贫困户进行奖补，流转土地 5亩。 | D47: 鲁岗镇东马庄村 | E47: 聂登科 | F47: 5 | G47: 贫困户每亩补助200元 | H47: 1000 | I47: 衔接资金 | J47: 2024年1月-12月 | K47: 通过土地流转使享受政策的建档立卡户每亩增收200元，经营主体每亩补助300元。 | L47: 项目实施将带动低收入人口增加收入，增加务工就业机会，群众满意。
A48: 45 | B48: 封丘县鲁岗镇（梓钰种植专业合作社）土地流转奖补项目 | C48: 对经营主体和13户流转土地的贫困户进行奖补，流转土地 15.7亩。 | D48: 鲁岗镇白店村 | E48: 郝金天 | F48: 1.12 | G48: 贫困户每亩补助200元 | H48: 224 | I48: 衔接资金 | J48: 2024年1月-12月 | K48: 通过土地流转使享受政策的建档立卡户每亩增收200元，经营主体每亩补助300元。 | L48: 项目实施将带动低收入人口增加收入，增加务工就业机会，群众满意。
A49: 46 | D49: 鲁岗镇白店村 | E49: 郝书云 | F49: 2.27 | G49: 贫困户每亩补助200元 | H49: 454 | I49: 衔接资金 | J49: 2024年1月-12月 | K49: 通过土地流转使享受政策的建档立卡户每亩增收200元，经营主体每亩补助300元。 | L49: 项目实施将带动低收入人口增加收入，增加务工就业机会，群众满意。
A50: 47 | D50: 鲁岗镇白店村 | E50: 孟祥龙 | F50: 1.69 | G50: 贫困户每亩补助200元 | H50: 338 | I50: 衔接资金 | J50: 2024年1月-12月 | K50: 通过土地流转使享受政策的建档立卡户每亩增收200元，经营主体每亩补助300元。 | L50: 项目实施将带动低收入人口增加收入，增加务工就业机会，群众满意。
A51: 48 | D51: 鲁岗镇白店村 | E51: 孟庆力 | F51: 1.77 | G51: 贫困户每亩补助200元 | H51: 354 | I51: 衔接资金 | J51: 2024年1月-12月 | K51: 通过土地流转使享受政策的建档立卡户每亩增收200元，经营主体每亩补助300元。 | L51: 项目实施将带动低收入人口增加收入，增加务工就业机会，群众满意。
A52: 49 | D52: 鲁岗镇白店村 | E52: 孟庆荣 | F52: 1.72 | G52: 贫困户每亩补助200元 | H52: 344 | I52: 衔接资金 | J52: 2024年1月-12月 | K52: 通过土地流转使享受政策的建档立卡户每亩增收200元，经营主体每亩补助300元。 | L52: 项目实施将带动低收入人口增加收入，增加务工就业机会，群众满意。
A53: 50 | D53: 鲁岗镇白店村 | E53: 孟庆连 | F53: 1.55 | G53: 贫困户每亩补助200元 | H53: 310 | I53: 衔接资金 | J53: 2024年1月-12月 | K53: 通过土地流转使享受政策的建档立卡户每亩增收200元，经营主体每亩补助300元。 | L53: 项目实施将带动低收入人口增加收入，增加务工就业机会，群众满意。
A54: 51 | D54: 鲁岗镇白店村 | E54: 李学川 | F54: 0.81 | G54: 贫困户每亩补助200元 | H54: 162 | I54: 衔接资金 | J54: 2024年1月-12月 | K54: 通过土地流转使享受政策的建档立卡户每亩增收200元，经营主体每亩补助300元。 | L54: 项目实施将带动低收入人口增加收入，增加务工就业机会，群众满意。
A55: 52 | D55: 鲁岗镇白店村 | E55: 李学宽 | F55: 0.49 | G55: 贫困户每亩补助200元 | H55: 98 | I55: 衔接资金 | J55: 2024年1月-12月 | K55: 通过土地流转使享受政策的建档立卡户每亩增收200元，经营主体每亩补助300元。 | L55: 项目实施将带动低收入人口增加收入，增加务工就业机会，群众满意。
A56: 53 | D56: 鲁岗镇白店村 | E56: 李学轩 | F56: 0.41 | G56: 贫困户每亩补助200元 | H56: 82 | I56: 衔接资金 | J56: 2024年1月-12月 | K56: 通过土地流转使享受政策的建档立卡户每亩增收200元，经营主体每亩补助300元。 | L56: 项目实施将带动低收入人口增加收入，增加务工就业机会，群众满意。
A57: 54 | D57: 鲁岗镇白店村 | E57: 刘军臣 | F57: 0.09 | G57: 贫困户每亩补助200元 | H57: 18 | I57: 衔接资金 | J57: 2024年1月-12月 | K57: 通过土地流转使享受政策的建档立卡户每亩增收200元，经营主体每亩补助300元。 | L57: 项目实施将带动低收入人口增加收入，增加务工就业机会，群众满意。
A58: 55 | D58: 鲁岗镇白店村 | E58: 张春学 | F58: 0.28 | G58: 贫困户每亩补助200元 | H58: 56 | I58: 衔接资金 | J58: 2024年1月-12月 | K58: 通过土地流转使享受政策的建档立卡户每亩增收200元，经营主体每亩补助300元。 | L58: 项目实施将带动低收入人口增加收入，增加务工就业机会，群众满意。
A59: 56 | D59: 鲁岗镇白店村 | E59: 孟祥群 | F59: 2.2 | G59: 贫困户每亩补助200元 | H59: 440 | I59: 衔接资金 | J59: 2024年1月-12月 | K59: 通过土地流转使享受政策的建档立卡户每亩增收200元，经营主体每亩补助300元。 | L59: 项目实施将带动低收入人口增加收入，增加务工就业机会，群众满意。
A60: 57 | D60: 鲁岗镇白店村 | E60: 孟凡江 | F60: 1.38 | G60: 贫困户每亩补助200元 | H60: 276 | I60: 衔接资金 | J60: 2024年1月-12月 | K60: 通过土地流转使享受政策的建档立卡户每亩增收200元，经营主体每亩补助300元。 | L60: 项目实施将带动低收入人口增加收入，增加务工就业机会，群众满意。
A61: 58 | B61: 封丘县鲁岗镇（客之家家庭农场）土地流转奖补项目 | C61: 对经营主体和1户流转土地的贫困户进行奖补，流转土地3.29亩。 | D61: 鲁岗镇鲁岗村 | E61: 李素萍 | F61: 3.29 | G61: 贫困户每亩补助200元 | H61: 658 | I61: 衔接资金 | J61: 2024年1月-12月 | K61: 通过土地流转使享受政策的建档立卡户每亩增收200元，经营主体每亩补助300元。 | L61: 项目实施将带动低收入人口增加收入，增加务工就业机会，群众满意。
A62: 59 | B62: 封丘县居厢镇（庆富金银花种植专业合作社）土地流转奖补项目 | C62: 对经营主体和9户流转土地的贫困户进行奖补，流转土地89.92亩。 | D62: 居厢镇纪店村 | E62: 李庆有 | F62: 6.29 | G62: 贫困户每亩补助200元 | H62: 1258 | I62: 衔接资金 | J62: 2024年1月-12月 | K62: 通过土地流转使享受政策的建档立卡户每亩增收200元，经营主体每亩补助300元。 | L62: 项目实施将带动低收入人口增加收入，增加务工就业机会，群众满意。
A63: 60 | D63: 居厢镇纪店村 | E63: 马占国 | F63: 5.39 | G63: 贫困户每亩补助200元 | H63: 1078 | I63: 衔接资金 | J63: 2024年1月-12月 | K63: 通过土地流转使享受政策的建档立卡户每亩增收200元，经营主体每亩补助300元。 | L63: 项目实施将带动低收入人口增加收入，增加务工就业机会，群众满意。
A64: 61 | D64: 居厢镇纪店村 | E64: 高香粉 | F64: 13.95 | G64: 贫困户每亩补助200元 | H64: 2790 | I64: 衔接资金 | J64: 2024年1月-12月 | K64: 通过土地流转使享受政策的建档立卡户每亩增收200元，经营主体每亩补助300元。 | L64: 项目实施将带动低收入人口增加收入，增加务工就业机会，群众满意。
A65: 62 | D65: 居厢镇纪店村 | E65: 张祖海 | F65: 13.70 | G65: 贫困户每亩补助200元 | H65: 2740 | I65: 衔接资金 | J65: 2024年1月-12月 | K65: 通过土地流转使享受政策的建档立卡户每亩增收200元，经营主体每亩补助300元。 | L65: 项目实施将带动低收入人口增加收入，增加务工就业机会，群众满意。
A66: 63 | D66: 居厢镇纪店村 | E66: 赵书宝 | F66: 12.17 | G66: 贫困户每亩补助200元 | H66: 2434 | I66: 衔接资金 | J66: 2024年1月-12月 | K66: 通过土地流转使享受政策的建档立卡户每亩增收200元，经营主体每亩补助300元。 | L66: 项目实施将带动低收入人口增加收入，增加务工就业机会，群众满意。
A67: 64 | D67: 居厢镇纪店村 | E67: 郑新艾 | F67: 12.06 | G67: 贫困户每亩补助200元 | H67: 2412 | I67: 衔接资金 | J67: 2024年1月-12月 | K67: 通过土地流转使享受政策的建档立卡户每亩增收200元，经营主体每亩补助300元。 | L67: 项目实施将带动低收入人口增加收入，增加务工就业机会，群众满意。
A68: 65 | D68: 居厢镇纪店村 | E68: 李少勤 | F68: 8.06 | G68: 贫困户每亩补助200元 | H68: 1612 | I68: 衔接资金 | J68: 2024年1月-12月 | K68: 通过土地流转使享受政策的建档立卡户每亩增收200元，经营主体每亩补助300元。 | L68: 项目实施将带动低收入人口增加收入，增加务工就业机会，群众满意。
A69: 66 | D69: 居厢镇纪店村 | E69: 赵伟 | F69: 7.97 | G69: 贫困户每亩补助200元 | H69: 1594 | I69: 衔接资金 | J69: 2024年1月-12月 | K69: 通过土地流转使享受政策的建档立卡户每亩增收200元，经营主体每亩补助300元。 | L69: 项目实施将带动低收入人口增加收入，增加务工就业机会，群众满意。
A70: 67 | D70: 居厢镇纪店村 | E70: 赵张岭 | F70: 10.33 | G70: 贫困户每亩补助200元 | H70: 2066 | I70: 衔接资金 | J70: 2024年1月-12月 | K70: 通过土地流转使享受政策的建档立卡户每亩增收200元，经营主体每亩补助300元。 | L70: 项目实施将带动低收入人口增加收入，增加务工就业机会，群众满意。
A71: 68 | B71: 封丘县居厢镇（济钦种植家庭农场）土地流转奖补项目 | C71: 对经营主体1户流转土地的贫困户进行奖补，流转土地8.36亩。 | D71: 居厢镇河东村 | E71: 樊彦中 | F71: 8.36 | G71: 贫困户每亩补助200元 | H71: 1672 | I71: 衔接资金 | J71: 2024年1月-12月 | K71: 通过土地流转使享受政策的建档立卡户每亩增收200元，经营主体每亩补助300元。 | L71: 项目实施将带动低收入人口增加收入，增加务工就业机会，群众满意。
A72: 69 | B72: 封丘县黄德镇(鑫豫种植专业合作社)土地流转奖补项目 | C72: 对经营主体和5户流转土地的贫困户进行奖补，流转土地38.8亩。 | D72: 黄德镇黄德村 | E72: 于际忠 | F72: 8.5 | G72: 贫困户每亩补助200元 | H72: 1700 | I72: 衔接资金 | J72: 2024年1月-12月 | K72: 通过土地流转使享受政策的建档立卡户每亩增收200元，经营主体每亩补助300元。 | L72: 项目实施将带动低收入人口增加收入，增加务工就业机会，群众满意。
A73: 70 | D73: 黄德镇黄德村 | E73: 赵启营 | F73: 6.7 | G73: 贫困户每亩补助200元 | H73: 1340 | I73: 衔接资金 | J73: 2024年1月-13月 | K73: 通过土地流转使享受政策的建档立卡户每亩增收200元，经营主体每亩补助300元。 | L73: 项目实施将带动低收入人口增加收入，增加务工就业机会，群众满意。
A74: 71 | D74: 黄德镇黄德村 | E74: 靳红荣 | F74: 4.6 | G74: 贫困户每亩补助200元 | H74: 920 | I74: 衔接资金 | J74: 2024年1月-14月 | K74: 通过土地流转使享受政策的建档立卡户每亩增收200元，经营主体每亩补助300元。 | L74: 项目实施将带动低收入人口增加收入，增加务工就业机会，群众满意。
A75: 72 | D75: 黄德镇黄德村 | E75: 张明堂 | F75: 5.7 | G75: 贫困户每亩补助200元 | H75: 1140 | I75: 衔接资金 | J75: 2024年1月-15月 | K75: 通过土地流转使享受政策的建档立卡户每亩增收200元，经营主体每亩补助300元。 | L75: 项目实施将带动低收入人口增加收入，增加务工就业机会，群众满意。
A76: 73 | D76: 黄德镇黄德村 | E76: 杨长治 | F76: 13.3 | G76: 贫困户每亩补助200元 | H76: 2660 | I76: 衔接资金 | J76: 2024年1月-16月 | K76: 通过土地流转使享受政策的建档立卡户每亩增收200元，经营主体每亩补助300元。 | L76: 项目实施将带动低收入人口增加收入，增加务工就业机会，群众满意。
A77: 74 | C77: 对经营主体和1户流转土地的贫困户进行奖补，流转土地9.4 亩。 | D77: 黄德镇文岩村 | E77: 于明琴 | F77: 9.4 | G77: 贫困户每亩补助200元 | H77: 1880 | I77: 衔接资金 | J77: 2024年1月-17月 | K77: 通过土地流转使享受政策的建档立卡户每亩增收200元，经营主体每亩补助300元。 | L77: 项目实施将带动低收入人口增加收入，增加务工就业机会，群众满意。
A78: 75 | B78: 封丘县黄德镇(黄河古道生态农业发展有限公司）土地流转奖补项目 | C78: 对经营主体和7户流转土地的贫困户进行奖补，流转土地48.02亩。 | D78: 黄德镇蒋西村 | E78: 邢素英 | F78: 3.57 | G78: 贫困户每亩补助200元 | H78: 714 | I78: 衔接资金 | J78: 2024年1月-18月 | K78: 通过土地流转使享受政策的建档立卡户每亩增收200元，经营主体每亩补助300元。 | L78: 项目实施将带动低收入人口增加收入，增加务工就业机会，群众满意。
A79: 76 | D79: 黄德镇蒋西村 | E79: 董治先 | F79: 2.17 | G79: 贫困户每亩补助200元 | H79: 434 | I79: 衔接资金 | J79: 2024年1月-19月 | K79: 通过土地流转使享受政策的建档立卡户每亩增收200元，经营主体每亩补助300元。 | L79: 项目实施将带动低收入人口增加收入，增加务工就业机会，群众满意。
A80: 77 | D80: 黄德镇蒋西村 | E80: 卢秋山 | F80: 2.5 | G80: 贫困户每亩补助200元 | H80: 500 | I80: 衔接资金 | J80: 2024年1月-20月 | K80: 通过土地流转使享受政策的建档立卡户每亩增收200元，经营主体每亩补助300元。 | L80: 项目实施将带动低收入人口增加收入，增加务工就业机会，群众满意。
A81: 78 | D81: 黄德镇蒋西村 | E81: 牛建志 | F81: 5.82 | G81: 贫困户每亩补助200元 | H81: 1164 | I81: 衔接资金 | J81: 2024年1月-21月 | K81: 通过土地流转使享受政策的建档立卡户每亩增收200元，经营主体每亩补助300元。 | L81: 项目实施将带动低收入人口增加收入，增加务工就业机会，群众满意。
A82: 79 | D82: 黄德镇蒋西村 | E82: 王天民 | F82: 15.47 | G82: 贫困户每亩补助200元 | H82: 3094 | I82: 衔接资金 | J82: 2024年1月-22月 | K82: 通过土地流转使享受政策的建档立卡户每亩增收200元，经营主体每亩补助300元。 | L82: 项目实施将带动低收入人口增加收入，增加务工就业机会，群众满意。
A83: 80 | D83: 黄德镇蒋西村 | E83: 刘成社 | F83: 7.26 | G83: 贫困户每亩补助200元 | H83: 1452 | I83: 衔接资金 | J83: 2024年1月-23月 | K83: 通过土地流转使享受政策的建档立卡户每亩增收200元，经营主体每亩补助300元。 | L83: 项目实施将带动低收入人口增加收入，增加务工就业机会，群众满意。
A84: 81 | D84: 黄德镇蒋西村 | E84: 齐风花 | F84: 11.23 | G84: 贫困户每亩补助200元 | H84: 2246 | I84: 衔接资金 | J84: 2024年1月-24月 | K84: 通过土地流转使享受政策的建档立卡户每亩增收200元，经营主体每亩补助300元。 | L84: 项目实施将带动低收入人口增加收入，增加务工就业机会，群众满意。
A85: 82 | B85: 封丘县荆隆宫乡(宏晟家庭农场)土地流转奖补项目 | C85: 对经营主体和3户流转土地的贫困户进行奖补，流转土地22.49亩。 | D85: 荆隆宫乡水驿村 | E85: 杨树祥 | F85: 4 | G85: 贫困户每亩补助200元 | H85: 800 | I85: 衔接资金 | J85: 2024年1月-12月 | K85: 通过土地流转使享受政策的建档立卡户每亩增收200元，经营主体每亩补助300元。 | L85: 项目实施将带动低收入人口增加收入，增加务工就业机会，群众满意。
A86: 83 | D86: 荆隆宫乡水驿村 | E86: 孙朝仲 | F86: 8 | G86: 贫困户每亩补助200元 | H86: 1600 | I86: 衔接资金 | J86: 2024年1月-12月 | K86: 通过土地流转使享受政策的建档立卡户每亩增收200元，经营主体每亩补助300元。 | L86: 项目实施将带动低收入人口增加收入，增加务工就业机会，群众满意。
A87: 84 | D87: 荆隆宫乡水驿村 | E87: 杨全有 | F87: 10.49 | G87: 贫困户每亩补助200元 | H87: 2098 | I87: 衔接资金 | J87: 2024年1月-12月 | K87: 通过土地流转使享受政策的建档立卡户每亩增收200元，经营主体每亩补助300元。 | L87: 项目实施将带动低收入人口增加收入，增加务工就业机会，群众满意。
A88: 85 | B88: 封丘县荆隆宫乡(沁雅桃园家庭农场)土地流转奖补项目 | C88: 对经营主体和1户流转土地的贫困户进行奖补，流转土地6.5亩。 | D88: 荆隆宫乡小齐寨村 | E88: 齐明营 | F88: 6.5 | G88: 贫困户每亩补助200元 | H88: 1300 | I88: 衔接资金 | J88: 2024年1月-12月 | K88: 通过土地流转使享受政策的建档立卡户每亩增收200元，经营主体每亩补助300元。 | L88: 项目实施将带动低收入人口增加收入，增加务工就业机会，群众满意。
A89: 86 | B89: 封丘县荆隆宫乡(携缘合种植专业合作社)土地流转奖补项目 | C89: 对经营主体和4户流转土地的贫困户进行奖补，流转土地30.65亩。 | D89: 荆隆宫乡丁庄村 | E89: 黄振跃 | F89: 10.14 | G89: 贫困户每亩补助200元 | H89: 2028 | I89: 衔接资金 | J89: 2024年1月-12月 | K89: 通过土地流转使享受政策的建档立卡户每亩增收200元，经营主体每亩补助300元。 | L89: 项目实施将带动低收入人口增加收入，增加务工就业机会，群众满意。
A90: 87 | D90: 荆隆宫乡丁庄村 | E90: 蒋国玉 | F90: 6.76 | G90: 贫困户每亩补助200元 | H90: 1352 | I90: 衔接资金 | J90: 2024年1月-12月 | K90: 通过土地流转使享受政策的建档立卡户每亩增收200元，经营主体每亩补助300元。 | L90: 项目实施将带动低收入人口增加收入，增加务工就业机会，群众满意。
A91: 88 | D91: 荆隆宫乡丁庄村 | E91: 王林 | F91: 8.32 | G91: 贫困户每亩补助200元 | H91: 1664 | I91: 衔接资金 | J91: 2024年1月-12月 | K91: 通过土地流转使享受政策的建档立卡户每亩增收200元，经营主体每亩补助300元。 | L91: 项目实施将带动低收入人口增加收入，增加务工就业机会，群众满意。
A92: 89 | D92: 荆隆宫乡丁庄村 | E92: 杜山 | F92: 5.43 | G92: 贫困户每亩补助200元 | H92: 1086 | I92: 衔接资金 | J92: 2024年1月-12月 | K92: 通过土地流转使享受政策的建档立卡户每亩增收200元，经营主体每亩补助300元。 | L92: 项目实施将带动低收入人口增加收入，增加务工就业机会，群众满意。
A93: 90 | B93: 封丘县荆隆宫乡(永顺种植专业合作社)土地流转奖补项目 | C93: 对经营主体和8户流转土地的贫困户进行奖补，流转土地76.3亩。 | D93: 荆隆宫乡西辛庄村 | E93: 翟孝荣 | F93: 5 | G93: 贫困户每亩补助200元 | H93: 1000 | I93: 衔接资金 | J93: 2024年1月-12月 | K93: 通过土地流转使享受政策的建档立卡户每亩增收200元，经营主体每亩补助300元。 | L93: 项目实施将带动低收入人口增加收入，增加务工就业机会，群众满意。
A94: 91 | D94: 荆隆宫乡西辛庄村 | E94: 刘青平 | F94: 7.1 | G94: 贫困户每亩补助200元 | H94: 1420 | I94: 衔接资金 | J94: 2024年1月-12月 | K94: 通过土地流转使享受政策的建档立卡户每亩增收200元，经营主体每亩补助300元。 | L94: 项目实施将带动低收入人口增加收入，增加务工就业机会，群众满意。
A95: 92 | D95: 荆隆宫乡西辛庄村 | E95: 王松 | F95: 10.3 | G95: 贫困户每亩补助200元 | H95: 2060 | I95: 衔接资金 | J95: 2024年1月-12月 | K95: 通过土地流转使享受政策的建档立卡户每亩增收200元，经营主体每亩补助300元。 | L95: 项目实施将带动低收入人口增加收入，增加务工就业机会，群众满意。
A96: 93 | D96: 荆隆宫乡西辛庄村 | E96: 刘振法 | F96: 12.4 | G96: 贫困户每亩补助200元 | H96: 2480 | I96: 衔接资金 | J96: 2024年1月-12月 | K96: 通过土地流转使享受政策的建档立卡户每亩增收200元，经营主体每亩补助300元。 | L96: 项目实施将带动低收入人口增加收入，增加务工就业机会，群众满意。
A97: 94 | D97: 荆隆宫乡西辛庄村 | E97: 刘仓洲 | F97: 11.8 | G97: 贫困户每亩补助200元 | H97: 2360 | I97: 衔接资金 | J97: 2024年1月-12月 | K97: 通过土地流转使享受政策的建档立卡户每亩增收200元，经营主体每亩补助300元。 | L97: 项目实施将带动低收入人口增加收入，增加务工就业机会，群众满意。
A98: 95 | D98: 荆隆宫乡西辛庄村 | E98: 刘振顺 | F98: 8.1 | G98: 贫困户每亩补助200元 | H98: 1620 | I98: 衔接资金 | J98: 2024年1月-12月 | K98: 通过土地流转使享受政策的建档立卡户每亩增收200元，经营主体每亩补助300元。 | L98: 项目实施将带动低收入人口增加收入，增加务工就业机会，群众满意。
A99: 96 | D99: 荆隆宫乡西辛庄村 | E99: 刘万顺 | F99: 12.6 | G99: 贫困户每亩补助200元 | H99: 2520 | I99: 衔接资金 | J99: 2024年1月-12月 | K99: 通过土地流转使享受政策的建档立卡户每亩增收200元，经营主体每亩补助300元。 | L99: 项目实施将带动低收入人口增加收入，增加务工就业机会，群众满意。
A100: 97 | D100: 荆隆宫乡西辛庄村 | E100: 刘建华 | F100: 9 | G100: 贫困户每亩补助200元 | H100: 1800 | I100: 衔接资金 | J100: 2024年1月-12月 | K100: 通过土地流转使享受政策的建档立卡户每亩增收200元，经营主体每亩补助300元。 | L100: 项目实施将带动低收入人口增加收入，增加务工就业机会，群众满意。
A101: 98 | B101: 封丘县荆隆宫乡(乃海种植专业合作社)土地流转奖补项目 | C101: 对经营主体和8户流转土地的贫困户进行奖补，流转土地63.1亩。 | D101: 荆隆宫乡大王庄村 | E101: 张乃龙 | F101: 10 | G101: 贫困户每亩补助200元 | H101: 2000 | I101: 衔接资金 | J101: 2024年1月-12月 | K101: 通过土地流转使享受政策的建档立卡户每亩增收200元，经营主体每亩补助300元。 | L101: 项目实施将带动低收入人口增加收入，增加务工就业机会，群众满意。
A102: 99 | D102: 荆隆宫乡大王庄村 | E102: 张天明 | F102: 13 | G102: 贫困户每亩补助200元 | H102: 2600 | I102: 衔接资金 | J102: 2024年1月-12月 | K102: 通过土地流转使享受政策的建档立卡户每亩增收200元，经营主体每亩补助300元。 | L102: 项目实施将带动低收入人口增加收入，增加务工就业机会，群众满意。
A103: 100 | D103: 荆隆宫乡大王庄村 | E103: 张乃春 | F103: 7 | G103: 贫困户每亩补助200元 | H103: 1400 | I103: 衔接资金 | J103: 2024年1月-12月 | K103: 通过土地流转使享受政策的建档立卡户每亩增收200元，经营主体每亩补助300元。 | L103: 项目实施将带动低收入人口增加收入，增加务工就业机会，群众满意。
A104: 101 | D104: 荆隆宫乡大王庄村 | E104: 张胜 | F104: 3.5 | G104: 贫困户每亩补助200元 | H104: 700 | I104: 衔接资金 | J104: 2024年1月-12月 | K104: 通过土地流转使享受政策的建档立卡户每亩增收200元，经营主体每亩补助300元。 | L104: 项目实施将带动低收入人口增加收入，增加务工就业机会，群众满意。
A105: 102 | D105: 荆隆宫乡大王庄村 | E105: 张天本 | F105: 9 | G105: 贫困户每亩补助200元 | H105: 1800 | I105: 衔接资金 | J105: 2024年1月-12月 | K105: 通过土地流转使享受政策的建档立卡户每亩增收200元，经营主体每亩补助300元。 | L105: 项目实施将带动低收入人口增加收入，增加务工就业机会，群众满意。
A106: 103 | D106: 荆隆宫乡大王庄村 | E106: 张乃树 | F106: 5 | G106: 贫困户每亩补助200元 | H106: 1000 | I106: 衔接资金 | J106: 2024年1月-12月 | K106: 通过土地流转使享受政策的建档立卡户每亩增收200元，经营主体每亩补助300元。 | L106: 项目实施将带动低收入人口增加收入，增加务工就业机会，群众满意。
A107: 104 | D107: 荆隆宫乡大王庄村 | E107: 孙兆安 | F107: 5.6 | G107: 贫困户每亩补助200元 | H107: 1120 | I107: 衔接资金 | J107: 2024年1月-12月 | K107: 通过土地流转使享受政策的建档立卡户每亩增收200元，经营主体每亩补助300元。 | L107: 项目实施将带动低收入人口增加收入，增加务工就业机会，群众满意。
A108: 105 | D108: 荆隆宫乡大王庄村 | E108: 孙喜 | F108: 10 | G108: 贫困户每亩补助200元 | H108: 2000 | I108: 衔接资金 | J108: 2024年1月-12月 | K108: 通过土地流转使享受政策的建档立卡户每亩增收200元，经营主体每亩补助300元。 | L108: 项目实施将带动低收入人口增加收入，增加务工就业机会，群众满意。
A109: 106 | B109: 河南荆隆宫乡(黄池农业发展有限公司)土地流转奖补项目 | C109: 对经营主体和10户流转土地的贫困户进行奖补，流转土地58.1亩。 | D109: 荆隆宫乡后桑园村 | E109: 温治峰 | F109: 12.3 | G109: 贫困户每亩补助200元 | H109: 2460 | I109: 衔接资金 | J109: 2024年1月-12月 | K109: 通过土地流转使享受政策的建档立卡户每亩增收200元，经营主体每亩补助300元。 | L109: 项目实施将带动低收入人口增加收入，增加务工就业机会，群众满意。
A110: 107 | D110: 荆隆宫乡后桑园村 | E110: 温义州 | F110: 4.3 | G110: 贫困户每亩补助200元 | H110: 860 | I110: 衔接资金 | J110: 2024年1月-12月 | K110: 通过土地流转使享受政策的建档立卡户每亩增收200元，经营主体每亩补助300元。 | L110: 项目实施将带动低收入人口增加收入，增加务工就业机会，群众满意。
A111: 108 | D111: 荆隆宫乡后桑园村 | E111: 屈广勋 | F111: 7.5 | G111: 贫困户每亩补助200元 | H111: 1500 | I111: 衔接资金 | J111: 2024年1月-12月 | K111: 通过土地流转使享受政策的建档立卡户每亩增收200元，经营主体每亩补助300元。 | L111: 项目实施将带动低收入人口增加收入，增加务工就业机会，群众满意。
A112: 109 | D112: 荆隆宫乡后桑园村 | E112: 温亮 | F112: 4.9 | G112: 贫困户每亩补助200元 | H112: 980 | I112: 衔接资金 | J112: 2024年1月-12月 | K112: 通过土地流转使享受政策的建档立卡户每亩增收200元，经营主体每亩补助300元。 | L112: 项目实施将带动低收入人口增加收入，增加务工就业机会，群众满意。
A113: 110 | D113: 荆隆宫乡后桑园村 | E113: 屈广峰 | F113: 2.5 | G113: 贫困户每亩补助200元 | H113: 500 | I113: 衔接资金 | J113: 2024年1月-12月 | K113: 通过土地流转使享受政策的建档立卡户每亩增收200元，经营主体每亩补助300元。 | L113: 项目实施将带动低收入人口增加收入，增加务工就业机会，群众满意。
A114: 111 | D114: 荆隆宫乡后桑园村 | E114: 原传根 | F114: 11.8 | G114: 贫困户每亩补助200元 | H114: 2360 | I114: 衔接资金 | J114: 2024年1月-12月 | K114: 通过土地流转使享受政策的建档立卡户每亩增收200元，经营主体每亩补助300元。 | L114: 项目实施将带动低收入人口增加收入，增加务工就业机会，群众满意。
A115: 112 | D115: 荆隆宫乡后桑园村 | E115: 温河 | F115: 2.5 | G115: 贫困户每亩补助200元 | H115: 500 | I115: 衔接资金 | J115: 2024年1月-12月 | K115: 通过土地流转使享受政策的建档立卡户每亩增收200元，经营主体每亩补助300元。 | L115: 项目实施将带动低收入人口增加收入，增加务工就业机会，群众满意。
A116: 113 | D116: 荆隆宫乡后桑园村 | E116: 温绍全 | F116: 7.3 | G116: 贫困户每亩补助200元 | H116: 1460 | I116: 衔接资金 | J116: 2024年1月-12月 | K116: 通过土地流转使享受政策的建档立卡户每亩增收200元，经营主体每亩补助300元。 | L116: 项目实施将带动低收入人口增加收入，增加务工就业机会，群众满意。
A117: 114 | D117: 荆隆宫乡后桑园村 | E117: 温电军 | F117: 2.5 | G117: 贫困户每亩补助200元 | H117: 500 | I117: 衔接资金 | J117: 2024年1月-12月 | K117: 通过土地流转使享受政策的建档立卡户每亩增收200元，经营主体每亩补助300元。 | L117: 项目实施将带动低收入人口增加收入，增加务工就业机会，群众满意。
A118: 115 | D118: 荆隆宫乡后桑园村 | E118: 温成 | F118: 2.5 | G118: 贫困户每亩补助200元 | H118: 500 | I118: 衔接资金 | J118: 2024年1月-12月 | K118: 通过土地流转使享受政策的建档立卡户每亩增收200元，经营主体每亩补助300元。 | L118: 项目实施将带动低收入人口增加收入，增加务工就业机会，群众满意。
A119: 116 | B119: 封丘县陈桥镇(陈桥村股份经济合作社)土地流转奖补项目 | C119: 对经营主体和19户流转土地的贫困户进行奖补，流转土地42.09 亩。 | D119: 陈桥镇陈桥村 | E119: 郜树才 | F119: 0.77 | G119: 贫困户每亩补助200元 | H119: 154 | I119: 衔接资金 | J119: 2024年1月-12月 | K119: 通过土地流转使享受政策的建档立卡户每亩增收200元，经营主体每亩补助300元。 | L119: 项目实施将带动低收入人口增加收入，增加务工就业机会，群众满意。
A120: 117 | D120: 陈桥镇陈桥村 | E120: 杨兴 | F120: 2.05 | G120: 贫困户每亩补助200元 | H120: 410 | I120: 衔接资金 | J120: 2024年1月-12月 | K120: 通过土地流转使享受政策的建档立卡户每亩增收200元，经营主体每亩补助300元。 | L120: 项目实施将带动低收入人口增加收入，增加务工就业机会，群众满意。
A121: 118 | D121: 陈桥镇陈桥村 | E121: 王俊 | F121: 1.3 | G121: 贫困户每亩补助200元 | H121: 260.00 | I121: 衔接资金 | J121: 2024年1月-12月 | K121: 通过土地流转使享受政策的建档立卡户每亩增收200元，经营主体每亩补助300元。 | L121: 项目实施将带动低收入人口增加收入，增加务工就业机会，群众满意。
A122: 119 | D122: 陈桥镇陈桥村 | E122: 袁振亭 | F122: 1.34 | G122: 贫困户每亩补助200元 | H122: 268.00 | I122: 衔接资金 | J122: 2024年1月-12月 | K122: 通过土地流转使享受政策的建档立卡户每亩增收200元，经营主体每亩补助300元。 | L122: 项目实施将带动低收入人口增加收入，增加务工就业机会，群众满意。
A123: 120 | D123: 陈桥镇陈桥村 | E123: 柳丙义 | F123: 0.9 | G123: 贫困户每亩补助200元 | H123: 180.00 | I123: 衔接资金 | J123: 2024年1月-12月 | K123: 通过土地流转使享受政策的建档立卡户每亩增收200元，经营主体每亩补助300元。 | L123: 项目实施将带动低收入人口增加收入，增加务工就业机会，群众满意。
A124: 121 | D124: 陈桥镇陈桥村 | E124: 卢文兰 | F124: 1.8 | G124: 贫困户每亩补助200元 | H124: 360.00 | I124: 衔接资金 | J124: 2024年1月-12月 | K124: 通过土地流转使享受政策的建档立卡户每亩增收200元，经营主体每亩补助300元。 | L124: 项目实施将带动低收入人口增加收入，增加务工就业机会，群众满意。
A125: 122 | D125: 陈桥镇陈桥村 | E125: 赵红霞 | F125: 2.33 | G125: 贫困户每亩补助200元 | H125: 466.00 | I125: 衔接资金 | J125: 2024年1月-12月 | K125: 通过土地流转使享受政策的建档立卡户每亩增收200元，经营主体每亩补助300元。 | L125: 项目实施将带动低收入人口增加收入，增加务工就业机会，群众满意。
A126: 123 | D126: 陈桥镇陈桥村 | E126: 宋银合 | F126: 5.6 | G126: 贫困户每亩补助200元 | H126: 1120.00 | I126: 衔接资金 | J126: 2024年1月-12月 | K126: 通过土地流转使享受政策的建档立卡户每亩增收200元，经营主体每亩补助300元。 | L126: 项目实施将带动低收入人口增加收入，增加务工就业机会，群众满意。
A127: 124 | D127: 陈桥镇陈桥村 | E127: 赵玉梅 | F127: 1.8 | G127: 贫困户每亩补助200元 | H127: 360.00 | I127: 衔接资金 | J127: 2024年1月-12月 | K127: 通过土地流转使享受政策的建档立卡户每亩增收200元，经营主体每亩补助300元。 | L127: 项目实施将带动低收入人口增加收入，增加务工就业机会，群众满意。
A128: 125 | D128: 陈桥镇陈桥村 | E128: 芦秀玲 | F128: 1.5 | G128: 贫困户每亩补助200元 | H128: 300.00 | I128: 衔接资金 | J128: 2024年1月-12月 | K128: 通过土地流转使享受政策的建档立卡户每亩增收200元，经营主体每亩补助300元。 | L128: 项目实施将带动低收入人口增加收入，增加务工就业机会，群众满意。
A129: 126 | D129: 陈桥镇陈桥村 | E129: 张永胜 | F129: 1.1 | G129: 贫困户每亩补助200元 | H129: 220.00 | I129: 衔接资金 | J129: 2024年1月-12月 | K129: 通过土地流转使享受政策的建档立卡户每亩增收200元，经营主体每亩补助300元。 | L129: 项目实施将带动低收入人口增加收入，增加务工就业机会，群众满意。
A130: 127 | D130: 陈桥镇陈桥村 | E130: 范其魁 | F130: 1.68 | G130: 贫困户每亩补助200元 | H130: 336.00 | I130: 衔接资金 | J130: 2024年1月-12月 | K130: 通过土地流转使享受政策的建档立卡户每亩增收200元，经营主体每亩补助300元。 | L130: 项目实施将带动低收入人口增加收入，增加务工就业机会，群众满意。
A131: 128 | D131: 陈桥镇陈桥村 | E131: 时风运 | F131: 1.74 | G131: 贫困户每亩补助200元 | H131: 348.00 | I131: 衔接资金 | J131: 2024年1月-12月 | K131: 通过土地流转使享受政策的建档立卡户每亩增收200元，经营主体每亩补助300元。 | L131: 项目实施将带动低收入人口增加收入，增加务工就业机会，群众满意。
A132: 129 | D132: 陈桥镇陈桥村 | E132: 雷云 | F132: 2.15 | G132: 贫困户每亩补助200元 | H132: 430.00 | I132: 衔接资金 | J132: 2024年1月-12月 | K132: 通过土地流转使享受政策的建档立卡户每亩增收200元，经营主体每亩补助300元。 | L132: 项目实施将带动低收入人口增加收入，增加务工就业机会，群众满意。
A133: 130 | D133: 陈桥镇陈桥村 | E133: 王新才 | F133: 7.68 | G133: 贫困户每亩补助200元 | H133: 1536.00 | I133: 衔接资金 | J133: 2024年1月-12月 | K133: 通过土地流转使享受政策的建档立卡户每亩增收200元，经营主体每亩补助300元。 | L133: 项目实施将带动低收入人口增加收入，增加务工就业机会，群众满意。
A134: 131 | D134: 陈桥镇陈桥村 | E134: 于景生 | F134: 2.61 | G134: 贫困户每亩补助200元 | H134: 522.00 | I134: 衔接资金 | J134: 2024年1月-12月 | K134: 通过土地流转使享受政策的建档立卡户每亩增收200元，经营主体每亩补助300元。 | L134: 项目实施将带动低收入人口增加收入，增加务工就业机会，群众满意。
A135: 132 | D135: 陈桥镇陈桥村 | E135: 范振叶 | F135: 3.74 | G135: 贫困户每亩补助200元 | H135: 748.00 | I135: 衔接资金 | J135: 2024年1月-12月 | K135: 通过土地流转使享受政策的建档立卡户每亩增收200元，经营主体每亩补助300元。 | L135: 项目实施将带动低收入人口增加收入，增加务工就业机会，群众满意。
A136: 133 | D136: 陈桥镇陈桥村 | E136: 杨国胜 | F136: 0.7 | G136: 贫困户每亩补助200元 | H136: 140.00 | I136: 衔接资金 | J136: 2024年1月-12月 | K136: 通过土地流转使享受政策的建档立卡户每亩增收200元，经营主体每亩补助300元。 | L136: 项目实施将带动低收入人口增加收入，增加务工就业机会，群众满意。
A137: 134 | D137: 陈桥镇陈桥村 | E137: 杨军 | F137: 1.3 | G137: 贫困户每亩补助200元 | H137: 260.00 | I137: 衔接资金 | J137: 2024年1月-12月 | K137: 通过土地流转使享受政策的建档立卡户每亩增收200元，经营主体每亩补助300元。 | L137: 项目实施将带动低收入人口增加收入，增加务工就业机会，群众满意。
A138: 135 | B138: 封丘县陈桥镇(盛道生态种植专业合作社)土地流转奖补项目 | C138: 对经营主体和4户流转土地的贫困户进行奖补，流转土地12.81亩。 | D138: 陈桥镇贺寨村 | E138: 李荣 | F138: 1.74 | G138: 贫困户每亩补助200元 | H138: 348 | I138: 衔接资金 | J138: 2024年1月-12月 | K138: 通过土地流转使享受政策的建档立卡户每亩增收200元，经营主体每亩补助300元。 | L138: 项目实施将带动低收入人口增加收入，增加务工就业机会，群众满意。
A139: 136 | D139: 陈桥镇贺寨村 | E139: 卢振波 | F139: 4.32 | G139: 贫困户每亩补助200元 | H139: 864 | I139: 衔接资金 | J139: 2024年1月-12月 | K139: 通过土地流转使享受政策的建档立卡户每亩增收200元，经营主体每亩补助300元。 | L139: 项目实施将带动低收入人口增加收入，增加务工就业机会，群众满意。
A140: 137 | D140: 陈桥镇贺寨村 | E140: 王振勇 | F140: 3.3 | G140: 贫困户每亩补助200元 | H140: 660 | I140: 衔接资金 | J140: 2024年1月-12月 | K140: 通过土地流转使享受政策的建档立卡户每亩增收200元，经营主体每亩补助300元。 | L140: 项目实施将带动低收入人口增加收入，增加务工就业机会，群众满意。
A141: 138 | D141: 陈桥镇贺寨村 | E141: 裴连朵 | F141: 3.45 | G141: 贫困户每亩补助200元 | H141: 690 | I141: 衔接资金 | J141: 2024年1月-12月 | K141: 通过土地流转使享受政策的建档立卡户每亩增收200元，经营主体每亩补助300元。 | L141: 项目实施将带动低收入人口增加收入，增加务工就业机会，群众满意。
A142: 139 | B142: 封丘县陈固镇(新中土地流转合作社)土地流转奖补项目 | C142: 对经营主体和3户流转土地的贫困户进行奖补，流转土地17.19亩。 | D142: 陈固镇东守宫村 | E142: 冯连香 | F142: 5.41 | G142: 贫困户每亩补助200元 | H142: 1082 | I142: 衔接资金 | J142: 2023年1月-12月 | K142: 通过土地流转使享受政策的建档立卡户每亩增收200元，经营主体每亩补助300元。 | L142: 项目实施将带动低收入人口增加收入，增加务工就业机会，群众满意。
A143: 140 | D143: 陈固镇东守宫村 | E143: 高晓喜 | F143: 4.28 | G143: 贫困户每亩补助200元 | H143: 856 | I143: 衔接资金 | J143: 2023年1月-12月 | K143: 通过土地流转使享受政策的建档立卡户每亩增收200元，经营主体每亩补助300元。 | L143: 项目实施将带动低收入人口增加收入，增加务工就业机会，群众满意。
A144: 141 | D144: 陈固镇东守宫村 | E144: 高其爱 | F144: 7.5 | G144: 贫困户每亩补助200元 | H144: 1500 | I144: 衔接资金 | J144: 2023年1月-12月 | K144: 通过土地流转使享受政策的建档立卡户每亩增收200元，经营主体每亩补助300元。 | L144: 项目实施将带动低收入人口增加收入，增加务工就业机会，群众满意。
A145: 142 | B145: 封丘县陈固镇(西域土地流转专业合作社)土地流转奖补项目 | C145: 对经营主体和6户流转土地的贫困户进行奖补，流转土地59.65亩。 | D145: 陈固镇梅口村 | E145: 曹国文 | F145: 15.34 | G145: 贫困户每亩补助200元 | H145: 3068 | I145: 衔接资金 | J145: 2023年1月-12月 | K145: 通过土地流转使享受政策的建档立卡户每亩增收200元，经营主体每亩补助300元。 | L145: 项目实施将带动低收入人口增加收入，增加务工就业机会，群众满意。
A146: 143 | D146: 陈固镇梅口村 | E146: 翟振勋 | F146: 10.94 | G146: 贫困户每亩补助200元 | H146: 2188 | I146: 衔接资金 | J146: 2023年1月-12月 | K146: 通过土地流转使享受政策的建档立卡户每亩增收200元，经营主体每亩补助300元。 | L146: 项目实施将带动低收入人口增加收入，增加务工就业机会，群众满意。
A147: 144 | D147: 陈固镇梅口村 | E147: 吕东林 | F147: 10.15 | G147: 贫困户每亩补助200元 | H147: 2030 | I147: 衔接资金 | J147: 2023年1月-12月 | K147: 通过土地流转使享受政策的建档立卡户每亩增收200元，经营主体每亩补助300元。 | L147: 项目实施将带动低收入人口增加收入，增加务工就业机会，群众满意。
A148: 145 | D148: 陈固镇梅口村 | E148: 翟振威 | F148: 7.17 | G148: 贫困户每亩补助200元 | H148: 1434 | I148: 衔接资金 | J148: 2023年1月-12月 | K148: 通过土地流转使享受政策的建档立卡户每亩增收200元，经营主体每亩补助300元。 | L148: 项目实施将带动低收入人口增加收入，增加务工就业机会，群众满意。
A149: 146 | D149: 陈固镇梅口村 | E149: 焦风宝 | F149: 7.09 | G149: 贫困户每亩补助200元 | H149: 1418 | I149: 衔接资金 | J149: 2023年1月-12月 | K149: 通过土地流转使享受政策的建档立卡户每亩增收200元，经营主体每亩补助300元。 | L149: 项目实施将带动低收入人口增加收入，增加务工就业机会，群众满意。
A150: 147 | D150: 陈固镇梅口村 | E150: 范俊旺 | F150: 8.96 | G150: 贫困户每亩补助200元 | H150: 1792 | I150: 衔接资金 | J150: 2023年1月-12月 | K150: 通过土地流转使享受政策的建档立卡户每亩增收200元，经营主体每亩补助300元。 | L150: 项目实施将带动低收入人口增加收入，增加务工就业机会，群众满意。
A151: 148 | B151: 封丘县陈固镇(士伟土地流转合作社)土地流转奖补项目 | C151: 对经营主体2户流转土地的贫困户进行奖补，流转土地15.87亩。 | D151: 陈固镇后李湾村 | E151: 孙玉俊 | F151: 5.03 | G151: 贫困户每亩补助200元 | H151: 1006 | I151: 衔接资金 | J151: 2023年1月-12月 | K151: 通过土地流转使享受政策的建档立卡户每亩增收200元，经营主体每亩补助300元。 | L151: 项目实施将带动低收入人口增加收入，增加务工就业机会，群众满意。
A152: 149 | D152: 陈固镇后李湾村 | E152: 鲍刘计 | F152: 10.84 | G152: 贫困户每亩补助200元 | H152: 2168 | I152: 衔接资金 | J152: 2023年1月-12月 | K152: 通过土地流转使享受政策的建档立卡户每亩增收200元，经营主体每亩补助300元。 | L152: 项目实施将带动低收入人口增加收入，增加务工就业机会，群众满意。
A153: 150 | B153: 封丘县赵岗镇(永峰家庭农场)土地流转奖补项目 | C153: 对经营主体和5户流转土地的贫困户进行奖补，流转土地35.1亩。 | D153: 赵岗镇惠寨村 | E153: 惠庆旺 | F153: 9.49 | G153: 贫困户每亩补助200元 | H153: 1898 | I153: 衔接资金 | J153: 2024年1月-12月 | K153: 通过土地流转使享受政策的建档立卡户每亩增收200元，经营主体每亩补助300元。 | L153: 项目实施将带动低收入人口增加收入，增加务工就业机会，群众满意。
A154: 151 | D154: 赵岗镇惠寨村 | E154: 惠庆仕 | F154: 7.97 | G154: 贫困户每亩补助200元 | H154: 1594 | I154: 衔接资金 | J154: 2024年1月-12月 | K154: 通过土地流转使享受政策的建档立卡户每亩增收200元，经营主体每亩补助300元。 | L154: 项目实施将带动低收入人口增加收入，增加务工就业机会，群众满意。
A155: 152 | D155: 赵岗镇惠寨村 | E155: 惠丙竹 | F155: 5.35 | G155: 贫困户每亩补助200元 | H155: 1070 | I155: 衔接资金 | J155: 2024年1月-12月 | K155: 通过土地流转使享受政策的建档立卡户每亩增收200元，经营主体每亩补助300元。 | L155: 项目实施将带动低收入人口增加收入，增加务工就业机会，群众满意。
A156: 153 | D156: 赵岗镇惠寨村 | E156: 魏凤莲 | F156: 7.85 | G156: 贫困户每亩补助200元 | H156: 1570 | I156: 衔接资金 | J156: 2024年1月-12月 | K156: 通过土地流转使享受政策的建档立卡户每亩增收200元，经营主体每亩补助300元。 | L156: 项目实施将带动低收入人口增加收入，增加务工就业机会，群众满意。
A157: 154 | D157: 赵岗镇惠寨村 | E157: 惠丙兴 | F157: 4.44 | G157: 贫困户每亩补助200元 | H157: 888 | I157: 衔接资金 | J157: 2024年1月-12月 | K157: 通过土地流转使享受政策的建档立卡户每亩增收200元，经营主体每亩补助300元。 | L157: 项目实施将带动低收入人口增加收入，增加务工就业机会，群众满意。
A158: 155 | B158: 封丘县留光镇(西林庄吉丰种植专业合作社)土地流转奖补项目 | C158: 对经营主体和16户流转土地的贫困户进行奖补，流转土地62.13亩。 | D158: 留光乡西林庄村 | E158: 王念护 | F158: 3.77 | G158: 贫困户每亩补助200元 | H158: 754 | I158: 衔接资金 | J158: 2024年1月-12月 | K158: 通过土地流转使享受政策的建档立卡户每亩增收200元，经营主体每亩补助300元。 | L158: 项目实施将带动低收入人口增加收入，增加务工就业机会，群众满意。
A159: 156 | D159: 留光乡西林庄村 | E159: 王宋然 | F159: 1.42 | G159: 贫困户每亩补助200元 | H159: 284 | I159: 衔接资金 | J159: 2024年1月-12月 | K159: 通过土地流转使享受政策的建档立卡户每亩增收200元，经营主体每亩补助300元。 | L159: 项目实施将带动低收入人口增加收入，增加务工就业机会，群众满意。
A160: 157 | D160: 留光乡西林庄村 | E160: 王卫峰 | F160: 4.16 | G160: 贫困户每亩补助200元 | H160: 832 | I160: 衔接资金 | J160: 2024年1月-12月 | K160: 通过土地流转使享受政策的建档立卡户每亩增收200元，经营主体每亩补助300元。 | L160: 项目实施将带动低收入人口增加收入，增加务工就业机会，群众满意。
A161: 158 | D161: 留光乡西林庄村 | E161: 王用兴 | F161: 1.32 | G161: 贫困户每亩补助200元 | H161: 264 | I161: 衔接资金 | J161: 2024年1月-12月 | K161: 通过土地流转使享受政策的建档立卡户每亩增收200元，经营主体每亩补助300元。 | L161: 项目实施将带动低收入人口增加收入，增加务工就业机会，群众满意。
A162: 159 | D162: 留光乡西林庄村 | E162: 李士英 | F162: 6.81 | G162: 贫困户每亩补助200元 | H162: 1362 | I162: 衔接资金 | J162: 2024年1月-12月 | K162: 通过土地流转使享受政策的建档立卡户每亩增收200元，经营主体每亩补助300元。 | L162: 项目实施将带动低收入人口增加收入，增加务工就业机会，群众满意。
A163: 160 | D163: 留光乡西林庄村 | E163: 王二佩 | F163: 1.2 | G163: 贫困户每亩补助200元 | H163: 240 | I163: 衔接资金 | J163: 2024年1月-12月 | K163: 通过土地流转使享受政策的建档立卡户每亩增收200元，经营主体每亩补助300元。 | L163: 项目实施将带动低收入人口增加收入，增加务工就业机会，群众满意。
A164: 161 | D164: 留光乡西林庄村 | E164: 王又坦 | F164: 1.7 | G164: 贫困户每亩补助200元 | H164: 340 | I164: 衔接资金 | J164: 2024年1月-12月 | K164: 通过土地流转使享受政策的建档立卡户每亩增收200元，经营主体每亩补助300元。 | L164: 项目实施将带动低收入人口增加收入，增加务工就业机会，群众满意。
A165: 162 | D165: 留光乡西林庄村 | E165: 王用仓 | F165: 3.44 | G165: 贫困户每亩补助200元 | H165: 688 | I165: 衔接资金 | J165: 2024年1月-12月 | K165: 通过土地流转使享受政策的建档立卡户每亩增收200元，经营主体每亩补助300元。 | L165: 项目实施将带动低收入人口增加收入，增加务工就业机会，群众满意。
A166: 163 | D166: 留光乡西林庄村 | E166: 王守付 | F166: 4.88 | G166: 贫困户每亩补助200元 | H166: 976 | I166: 衔接资金 | J166: 2024年1月-12月 | K166: 通过土地流转使享受政策的建档立卡户每亩增收200元，经营主体每亩补助300元。 | L166: 项目实施将带动低收入人口增加收入，增加务工就业机会，群众满意。
A167: 164 | D167: 留光乡西林庄村 | E167: 高长岭 | F167: 3.63 | G167: 贫困户每亩补助200元 | H167: 726 | I167: 衔接资金 | J167: 2024年1月-12月 | K167: 通过土地流转使享受政策的建档立卡户每亩增收200元，经营主体每亩补助300元。 | L167: 项目实施将带动低收入人口增加收入，增加务工就业机会，群众满意。
A168: 165 | D168: 留光乡西林庄村 | E168: 王又社 | F168: 1.77 | G168: 贫困户每亩补助200元 | H168: 354 | I168: 衔接资金 | J168: 2024年1月-12月 | K168: 通过土地流转使享受政策的建档立卡户每亩增收200元，经营主体每亩补助300元。 | L168: 项目实施将带动低收入人口增加收入，增加务工就业机会，群众满意。
A169: 166 | D169: 留光乡西林庄村 | E169: 王振东 | F169: 6.21 | G169: 贫困户每亩补助200元 | H169: 1242 | I169: 衔接资金 | J169: 2024年1月-12月 | K169: 通过土地流转使享受政策的建档立卡户每亩增收200元，经营主体每亩补助300元。 | L169: 项目实施将带动低收入人口增加收入，增加务工就业机会，群众满意。
A170: 167 | D170: 留光乡西林庄村 | E170: 王用海 | F170: 1.42 | G170: 贫困户每亩补助200元 | H170: 284 | I170: 衔接资金 | J170: 2024年1月-12月 | K170: 通过土地流转使享受政策的建档立卡户每亩增收200元，经营主体每亩补助300元。 | L170: 项目实施将带动低收入人口增加收入，增加务工就业机会，群众满意。
A171: 168 | D171: 留光乡西林庄村 | E171: 马淑兰 | F171: 8.49 | G171: 贫困户每亩补助200元 | H171: 1698 | I171: 衔接资金 | J171: 2024年1月-12月 | K171: 通过土地流转使享受政策的建档立卡户每亩增收200元，经营主体每亩补助300元。 | L171: 项目实施将带动低收入人口增加收入，增加务工就业机会，群众满意。
A172: 169 | D172: 留光乡西林庄村 | E172: 王用娥 | F172: 7.58 | G172: 贫困户每亩补助200元 | H172: 1516 | I172: 衔接资金 | J172: 2024年1月-12月 | K172: 通过土地流转使享受政策的建档立卡户每亩增收200元，经营主体每亩补助300元。 | L172: 项目实施将带动低收入人口增加收入，增加务工就业机会，群众满意。
A173: 170 | D173: 留光乡西林庄村 | E173: 罗祥菊 | F173: 4.33 | G173: 贫困户每亩补助200元 | H173: 866 | I173: 衔接资金 | J173: 2024年1月-12月 | K173: 通过土地流转使享受政策的建档立卡户每亩增收200元，经营主体每亩补助300元。 | L173: 项目实施将带动低收入人口增加收入，增加务工就业机会，群众满意。
A174: 171 | B174: 封丘县留光镇(俊波种植专业合作社)土地流转奖补项目 | C174: 对经营主体和2户流转土地的贫困户进行奖补，流转土地10.89亩。 | D174: 留光乡西林庄村 | E174: 王军廷 | F174: 5.59 | G174: 贫困户每亩补助200元 | H174: 1118 | I174: 衔接资金 | J174: 2024年1月-12月 | K174: 通过土地流转使享受政策的建档立卡户每亩增收200元，经营主体每亩补助300元。 | L174: 项目实施将带动低收入人口增加收入，增加务工就业机会，群众满意。
A175: 172 | D175: 留光乡西林庄村 | E175: 王又堂 | F175: 5.3 | G175: 贫困户每亩补助200元 | H175: 1060 | I175: 衔接资金 | J175: 2024年1月-12月 | K175: 通过土地流转使享受政策的建档立卡户每亩增收200元，经营主体每亩补助300元。 | L175: 项目实施将带动低收入人口增加收入，增加务工就业机会，群众满意。
A176: 173 | B176: 封丘县留光镇（海港种植家庭农场）土地流转奖补项目 | C176: 对经营主体和23户流转土地的贫困户进行奖补，流转土地102.72亩。 | D176: 留光乡合城村 | E176: 司孝锤 | F176: 5.7 | G176: 贫困户每亩补助200元 | H176: 1140 | I176: 衔接资金 | J176: 2024年1月-12月 | K176: 通过土地流转使享受政策的建档立卡户每亩增收200元，经营主体每亩补助300元。 | L176: 项目实施将带动低收入人口增加收入，增加务工就业机会，群众满意。
A177: 174 | D177: 留光乡合城村 | E177: 司增良 | F177: 5.1 | G177: 贫困户每亩补助200元 | H177: 1020 | I177: 衔接资金 | J177: 2024年1月-12月 | K177: 通过土地流转使享受政策的建档立卡户每亩增收200元，经营主体每亩补助300元。 | L177: 项目实施将带动低收入人口增加收入，增加务工就业机会，群众满意。
A178: 175 | D178: 留光乡合城村 | E178: 司振轩 | F178: 7.8 | G178: 贫困户每亩补助200元 | H178: 1560 | I178: 衔接资金 | J178: 2024年1月-12月 | K178: 通过土地流转使享受政策的建档立卡户每亩增收200元，经营主体每亩补助300元。 | L178: 项目实施将带动低收入人口增加收入，增加务工就业机会，群众满意。
A179: 176 | D179: 留光乡合城村 | E179: 王春允 | F179: 4.5 | G179: 贫困户每亩补助200元 | H179: 900 | I179: 衔接资金 | J179: 2024年1月-12月 | K179: 通过土地流转使享受政策的建档立卡户每亩增收200元，经营主体每亩补助300元。 | L179: 项目实施将带动低收入人口增加收入，增加务工就业机会，群众满意。
A180: 177 | D180: 留光乡合城村 | E180: 司恒莲 | F180: 3.2 | G180: 贫困户每亩补助200元 | H180: 640 | I180: 衔接资金 | J180: 2024年1月-12月 | K180: 通过土地流转使享受政策的建档立卡户每亩增收200元，经营主体每亩补助300元。 | L180: 项目实施将带动低收入人口增加收入，增加务工就业机会，群众满意。
A181: 178 | D181: 留光乡合城村 | E181: 王喜堂 | F181: 11 | G181: 贫困户每亩补助200元 | H181: 2200 | I181: 衔接资金 | J181: 2024年1月-12月 | K181: 通过土地流转使享受政策的建档立卡户每亩增收200元，经营主体每亩补助300元。 | L181: 项目实施将带动低收入人口增加收入，增加务工就业机会，群众满意。
A182: 179 | D182: 留光乡合城村 | E182: 许自安 | F182: 2 | G182: 贫困户每亩补助200元 | H182: 400 | I182: 衔接资金 | J182: 2024年1月-12月 | K182: 通过土地流转使享受政策的建档立卡户每亩增收200元，经营主体每亩补助300元。 | L182: 项目实施将带动低收入人口增加收入，增加务工就业机会，群众满意。
A183: 180 | D183: 留光乡合城村 | E183: 司光明 | F183: 6.45 | G183: 贫困户每亩补助200元 | H183: 1290 | I183: 衔接资金 | J183: 2024年1月-12月 | K183: 通过土地流转使享受政策的建档立卡户每亩增收200元，经营主体每亩补助300元。 | L183: 项目实施将带动低收入人口增加收入，增加务工就业机会，群众满意。
A184: 181 | D184: 留光乡合城村 | E184: 司学信 | F184: 1.21 | G184: 贫困户每亩补助200元 | H184: 242 | I184: 衔接资金 | J184: 2024年1月-12月 | K184: 通过土地流转使享受政策的建档立卡户每亩增收200元，经营主体每亩补助300元。 | L184: 项目实施将带动低收入人口增加收入，增加务工就业机会，群众满意。
A185: 182 | D185: 留光乡合城村 | E185: 司广利 | F185: 2.13 | G185: 贫困户每亩补助200元 | H185: 426 | I185: 衔接资金 | J185: 2024年1月-12月 | K185: 通过土地流转使享受政策的建档立卡户每亩增收200元，经营主体每亩补助300元。 | L185: 项目实施将带动低收入人口增加收入，增加务工就业机会，群众满意。
A186: 183 | D186: 留光乡合城村 | E186: 王玉兰 | F186: 4.55 | G186: 贫困户每亩补助200元 | H186: 910 | I186: 衔接资金 | J186: 2024年1月-12月 | K186: 通过土地流转使享受政策的建档立卡户每亩增收200元，经营主体每亩补助300元。 | L186: 项目实施将带动低收入人口增加收入，增加务工就业机会，群众满意。
A187: 184 | D187: 留光乡合城村 | E187: 徐广元 | F187: 1.04 | G187: 贫困户每亩补助200元 | H187: 208 | I187: 衔接资金 | J187: 2024年1月-12月 | K187: 通过土地流转使享受政策的建档立卡户每亩增收200元，经营主体每亩补助300元。 | L187: 项目实施将带动低收入人口增加收入，增加务工就业机会，群众满意。
A188: 185 | D188: 留光乡合城村 | E188: 司利园 | F188: 6 | G188: 贫困户每亩补助200元 | H188: 1200 | I188: 衔接资金 | J188: 2024年1月-12月 | K188: 通过土地流转使享受政策的建档立卡户每亩增收200元，经营主体每亩补助300元。 | L188: 项目实施将带动低收入人口增加收入，增加务工就业机会，群众满意。
A189: 186 | D189: 留光乡合城村 | E189: 申际枝 | F189: 1.5 | G189: 贫困户每亩补助200元 | H189: 300 | I189: 衔接资金 | J189: 2024年1月-12月 | K189: 通过土地流转使享受政策的建档立卡户每亩增收200元，经营主体每亩补助300元。 | L189: 项目实施将带动低收入人口增加收入，增加务工就业机会，群众满意。
A190: 187 | D190: 留光乡合城村 | E190: 张秀兰 | F190: 5.58 | G190: 贫困户每亩补助200元 | H190: 1116 | I190: 衔接资金 | J190: 2024年1月-12月 | K190: 通过土地流转使享受政策的建档立卡户每亩增收200元，经营主体每亩补助300元。 | L190: 项目实施将带动低收入人口增加收入，增加务工就业机会，群众满意。
A191: 188 | D191: 留光乡合城村 | E191: 许光法 | F191: 3.5 | G191: 贫困户每亩补助200元 | H191: 700 | I191: 衔接资金 | J191: 2024年1月-12月 | K191: 通过土地流转使享受政策的建档立卡户每亩增收200元，经营主体每亩补助300元。 | L191: 项目实施将带动低收入人口增加收入，增加务工就业机会，群众满意。
A192: 189 | D192: 留光乡合城村 | E192: 李秀叶 | F192: 4.9 | G192: 贫困户每亩补助200元 | H192: 980 | I192: 衔接资金 | J192: 2024年1月-12月 | K192: 通过土地流转使享受政策的建档立卡户每亩增收200元，经营主体每亩补助300元。 | L192: 项目实施将带动低收入人口增加收入，增加务工就业机会，群众满意。
A193: 190 | D193: 留光乡合城村 | E193: 徐广学 | F193: 7.6 | G193: 贫困户每亩补助200元 | H193: 1520 | I193: 衔接资金 | J193: 2024年1月-12月 | K193: 通过土地流转使享受政策的建档立卡户每亩增收200元，经营主体每亩补助300元。 | L193: 项目实施将带动低收入人口增加收入，增加务工就业机会，群众满意。
A194: 191 | D194: 留光乡合城村 | E194: 许自海 | F194: 5.1 | G194: 贫困户每亩补助200元 | H194: 1020 | I194: 衔接资金 | J194: 2024年1月-12月 | K194: 通过土地流转使享受政策的建档立卡户每亩增收200元，经营主体每亩补助300元。 | L194: 项目实施将带动低收入人口增加收入，增加务工就业机会，群众满意。
A195: 192 | D195: 留光乡合城村 | E195: 司孝乐 | F195: 1.9 | G195: 贫困户每亩补助200元 | H195: 380 | I195: 衔接资金 | J195: 2024年1月-12月 | K195: 通过土地流转使享受政策的建档立卡户每亩增收200元，经营主体每亩补助300元。 | L195: 项目实施将带动低收入人口增加收入，增加务工就业机会，群众满意。
A196: 193 | D196: 留光乡合城村 | E196: 司振让 | F196: 5.11 | G196: 贫困户每亩补助200元 | H196: 1022 | I196: 衔接资金 | J196: 2024年1月-12月 | K196: 通过土地流转使享受政策的建档立卡户每亩增收200元，经营主体每亩补助300元。 | L196: 项目实施将带动低收入人口增加收入，增加务工就业机会，群众满意。
A197: 194 | D197: 留光乡合城村 | E197: 司振美 | F197: 4.3 | G197: 贫困户每亩补助200元 | H197: 860 | I197: 衔接资金 | J197: 2024年1月-12月 | K197: 通过土地流转使享受政策的建档立卡户每亩增收200元，经营主体每亩补助300元。 | L197: 项目实施将带动低收入人口增加收入，增加务工就业机会，群众满意。
A198: 195 | D198: 留光乡合城村 | E198: 于晓芹 | F198: 2.55 | G198: 贫困户每亩补助200元 | H198: 510 | I198: 衔接资金 | J198: 2024年1月-12月 | K198: 通过土地流转使享受政策的建档立卡户每亩增收200元，经营主体每亩补助300元。 | L198: 项目实施将带动低收入人口增加收入，增加务工就业机会，群众满意。
A199: 196 | B199: 封丘县留光镇（鼎力种植专业合作社）土地流转奖补项目 | C199: 对经营主体和8户流转土地的贫困户进行奖补，流转土地41.08亩。 | D199: 留光乡留固村 | E199: 薛根明 | F199: 7.56 | G199: 贫困户每亩补助200元 | H199: 1512 | I199: 衔接资金 | J199: 2024年1月-12月 | K199: 通过土地流转使享受政策的建档立卡户每亩增收200元，经营主体每亩补助300元。 | L199: 项目实施将带动低收入人口增加收入，增加务工就业机会，群众满意。
A200: 197 | D200: 留光乡留固村 | E200: 邓济涛 | F200: 5.67 | G200: 贫困户每亩补助200元 | H200: 1134 | I200: 衔接资金 | J200: 2024年1月-12月 | K200: 通过土地流转使享受政策的建档立卡户每亩增收200元，经营主体每亩补助300元。 | L200: 项目实施将带动低收入人口增加收入，增加务工就业机会，群众满意。
... 679 more rows
